{"text_format":"2","workbook":"xlsx","n_sheets":16,"sheets":["PTGE Midour Synthèse","Activités","CMU_résumé","CMU","AUM_résumé","AUM","OGRM_résumé","OGRM","MRC_résumé","MRC","ASV_résumé","ASV","Gouv_résumé","Gouv","Gantt","Synthèse_prog_action"],"not_rendered":{"charts":2,"images":4,"macros":0,"external_links":1,"defined_names":1,"comments":0,"pivot_tables":0},"unopened":[{"sheet":"Gantt","index":14,"reason":"not_a_worksheet"}],"bounds":{"document_bytes":16777216,"sheet_cells":100000,"run_cost":"one","rows_first":2000,"rows_last":500,"rows_between":2000,"halvings":0,"cell_chars":16384,"cell_head_chars":4096},"cells_cut":0,"cells_raw":0,"read":"whole","date_system":"1900"}

{"sheet":"PTGE Midour Synthèse","index":0,"n_rows":24,"n_cols":10,"rows_kept":24,"cut":false,"hidden":false,"merged":[]}
[null,"PTGE Midour Synthèse","le 10/03/2025"]
["","","",null,null,"",null,null,"",""]
["Code","Nom","Activités avec priorité HAUTE","Activités avec priorité MOYENNE","Activités avec priorité FAIBLE","Etat d'avancement","Progression (%)","e² (Mm3)","Objectif PTGE 2035","Commentaires"]
["CMU","Connaissance des milieux et des usages",{"$f":"COUNTIF(Activités!I2:I8,\"Haute\")","v":0},{"$f":"COUNTIF(Activités!I2:I8,\"Moyenne\")","v":0},{"$f":"COUNTIF(Activités!I2:I8,\"Faible\")","v":7},{"$f":"CMU_résumé!E11","v":59.261904761904759},{"$f":"CMU_résumé!F11","v":59.261904761904759},{"$f":"CMU_résumé!G11","v":0},"",""]
["AUM","Adaptation des usages aux milieux",{"$f":"COUNTIF(Activités!I9:I22,\"Haute\")","v":4},{"$f":"COUNTIF(Activités!I9:I22,\"Moyenne\")","v":3},{"$f":"COUNTIF(Activités!I9:I22,\"Faible\")","v":7},{"$f":"AUM_résumé!E8","v":12.012499999999999},{"$f":"AUM_résumé!F8","v":12.012499999999999},{"$f":"AUM_résumé!G8","v":1.40679E-2},"1,75 Mm³",""]
["OGRM","Optimisation de la gestion des ressources et des milieux",{"$f":"COUNTIF(Activités!I23:I41,\"Haute\")","v":4},{"$f":"COUNTIF(Activités!I23:I41,\"Moyenne\")","v":6},{"$f":"COUNTIF(Activités!I23:I41,\"Faible\")","v":9},{"$f":"OGRM_résumé!E9","v":42.016666666666666},{"$f":"OGRM_résumé!F9","v":42.016666666666666},{"$f":"OGRM_résumé!G9","v":0.47799999999999998},"3 Mm³"]
["MRC","Mobilisation de ressources complémentaires",{"$f":"COUNTIF(Activités!I42:I48,\"Haute\")","v":1},{"$f":"COUNTIF(Activités!I42:I48,\"Moyenne\")","v":6},{"$f":"COUNTIF(Activités!I42:I48,\"Faible\")","v":0},{"$f":"MRC_résumé!E6","v":21.975000000000001},{"$f":"MRC_résumé!F6","v":21.975000000000001},{"$f":"MRC_résumé!G6","v":0},"5,35 Mm³ (2,15 reut + 2,1 Mm3 phc + 0,45 cscrh + 0,65 Mm3 rosm)"]
["ASV","Accompagnement, sensibilisation et valorisation",{"$f":"COUNTIF(Activités!I49:I57,\"Haute\")","v":3},{"$f":"COUNTIF(Activités!I49:I57,\"Moyenne\")","v":2},{"$f":"COUNTIF(Activités!I49:I57,\"Faible\")","v":4},{"$f":"ASV_résumé!E7","v":41.657407407407412},{"$f":"ASV_résumé!F7","v":41.657407407407412},{"$f":"ASV_résumé!G7","v":0}]
["GOUV","Gouvernance",{"$f":"COUNTIF(Activités!I58:I60,\"Haute\")","v":0},{"$f":"COUNTIF(Activités!I58:I60,\"Moyenne\")","v":3},{"$f":"COUNTIF(Activités!I58:I60,\"Faible\")","v":0},{"$f":"Gouv_résumé!E7","v":100},{"$f":"Gouv_résumé!F7","v":100},{"$f":"Gouv_résumé!G7","v":0}]
[]
[null,"PTGE Midour  : Guide de lecture"]
[21.975000000000001,"avancement moyen compris entre 0 et 33%"]
[41.657407407407412,"avancement moyen compris entre 34 et 66 %"]
[100,"avancement moyen compris entre 67 et 100 %"]
[58,"barre de progression en %"]
[]
["Priorité","Le caractère prioritaire des actions est sujet à évolution"]
["E² (Mm3)","Economie d'eau attendue (en million de mètres cubes)"]
[]
["Non démarré","Action non initiée / qui découle de l'avancement d'une préalable pour être démarrée"]
["Engagé","En cours, dans les étapes préliminaires"]
["Bien avancé","En cours, plutôt dans les dernières étapes"]
["Terminée","Pour les actions ponctuelles avec une date de fin"]
["Se poursuit","Action qui a vocation à durer dans le temps  / Sans date de fin"]

{"sheet":"Activités","index":1,"n_rows":60,"n_cols":15,"rows_kept":60,"cut":false,"hidden":false,"merged":[[92,3,92,6],[98,3,98,5],[108,3,108,5],[57,0,59,0],[1,0,7,0],[8,0,21,0],[22,0,40,0],[41,0,47,0],[48,0,56,0],[71,3,71,6],[77,3,77,5],[80,5,80,6],[81,5,81,6],[85,3,85,5],[109,7,109,9],[111,5,111,6],[112,5,112,6],[140,3,140,5],[147,3,147,6],[114,5,114,6],[118,3,118,5],[125,3,125,6],[131,3,131,5],[134,5,134,6],[136,5,136,6],[113,5,113,6]]}
[{"$f":"'PTGE Midour Synthèse'!C1","v":"le 10/03/2025"},"Code","Activité","Opérateurs","MAEC/ Programme","Début","Fin","Duration (jours)","Priorité"]
["Connaissance des milieux et des usages","CMU",{"$f":"CMU!B2","v":"CMU1 - Quantifier les relations nappes-rivières et évaluer l'impact des prélèvements en eaux souterraines"},{"$f":"_xlfn.CONCAT(CMU!E4:E5)","v":"IA, à définir, "},null,{"$f":"CMU!G4","v":"00:00:00"},{"$f":"CMU!H4","v":"00:00:00"},{"$f":"G2-F2","v":0},"Faible",null,"Date min",{"$f":"_xlfn.MINIFS(F2:F60,F2:F60,\">31/12/2019\")","v":43831},null,"#FF3300","Haute"]
[null,"CMU",{"$f":"CMU!B8","v":"CMU2 - Etudier la qualité sur le bassin du Midour"},{"$f":"_xlfn.CONCAT(CMU!E10)","v":"Aquascope, AAPPMA 32, "},null,{"$f":"MIN(CMU!G10)","v":"2022-01-01"},{"$f":"MAX(CMU!H10)","v":"2027-12-31"},{"$f":"G3-F3","v":2190},"Faible",null,"Date max",{"$f":"MAX(G2:G60)","v":47252},null,"#FFE699","Moyenne"]
[null,"CMU",{"$f":"CMU!B13","v":"CMU3 - Améliorer le suivi hydrométrique du Ludon"},{"$f":"_xlfn.CONCAT(CMU!E15:E17)","v":"DREAL NA, DREAL NA, DREAL NA Irrigadour, "},null,{"$f":"MIN(CMU!G15:G17)","v":"2020-10-01"},{"$f":"MAX(CMU!H15:H17)","v":"2024-04-23"},1300,"Faible",{"$nulls":4},"#C6E0B4","Faible"]
[null,"CMU",{"$f":"CMU!B20","v":"CMU4 - Evaluer l'état d'envasement des ouvrages de stockage d'eau et les actions d'aménagement pour limiter l'érosion"},{"$f":"_xlfn.CONCAT(CMU!E22:E23)","v":"IA, AEAG, Vivadour, IA, AEAG, Vivadour, "},"SDC2, COV2, CPRA",{"$f":"MIN(CMU!G22:G23)","v":"2022-01-01"},{"$f":"MAX(CMU!H22:H23)","v":"2027-12-31"},2190,"Faible"]
[null,"CMU",{"$f":"CMU!B26","v":"CMU5 - Connaître les besoins culturaux d'irrigation par campagne et la répartition de la ressource associée"},{"$f":"_xlfn.CONCAT(CMU!E28)","v":""},null,{"$f":"MIN(CMU!G28)","v":"2023-01-01"},{"$f":"MAX(CMU!H28)","v":"2028-12-31"},2191,"Faible"]
[null,"CMU",{"$f":"CMU!B31","v":"CMU6 - Expertiser les réseaux collectifs d'irrigation à moderniser"},{"$f":"_xlfn.CONCAT(CMU!E33:E36)","v":"CA40, CA40, CA32, CA32, "},null,{"$f":"MIN(CMU!G33:G36)","v":"2023-11-01"},{"$f":"MAX(CMU!H33:H36)","v":"2024-08-31"},304,"Faible"]
[null,"CMU",{"$f":"CMU!B39","v":"CMU7 - Recenser et inventorier le patrimoine naturel et les éléments paysagers à protéger"},{"$f":"_xlfn.CONCAT(CMU!E41:E43)","v":"IA, acteurs agricoles, IA, acteurs agricoles, IA, acteurs agricoles, "},null,{"$f":"MIN(CMU!G41:G43)","v":"2023-01-01"},{"$f":"MAX(CMU!H41:H43)","v":"2024-04-30"},485,"Faible"]
["Adaptation des usages aux milieux","AUM",{"$f":"AUM!B2","v":"AUM1a : Mettre en place un groupe de travail sur le développement de filières durables sur le territoire et alentours"},{"$f":"_xlfn.CONCAT(AUM!E4)","v":"Ensemble des acteurs du territoire, "},null,{"$f":"MIN(AUM!G4)","v":"00:00:00"},{"$f":"MAX(AUM!H4)","v":"00:00:00"},0,"Faible"]
[null,"AUM",{"$f":"AUM!B7","v":"AUM1b : Etude de faisabilité : redynamiser l'élevage en pâturage sur les têtes de bassins et valoriser les systèmes agropastoraux"},{"$f":"_xlfn.CONCAT(AUM!E9:E11)","v":"ADASEA, CA32, ADASEA, CA32, ADASEA, CA32, "},"HBV2, HBV3, CPRA",{"$f":"MIN(AUM!G9:G11)","v":"2023-07-01"},{"$f":"MAX(AUM!H9:H11)","v":"2025-12-31"},914,"Faible"]
[null,"AUM",{"$f":"AUM!B17","v":"AUM1c : Etude de faisabilité : filières de valorisation des intercultures, des pratiques de conservation des sols et d'agroforesterie"},{"$f":"_xlfn.CONCAT(AUM!D19:D23)","v":"CA40CA32CA32CA32CA40"},"SDC2, COV2, EAU1, EAU2, FER2",{"$f":"MIN(AUM!G19)","v":"2024-05-15"},{"$f":"MAX(AUM!H19)","v":"2029-05-14"},1825,"Faible"]
[null,"AUM",{"$f":"AUM!B28","v":"AUM1d : Etudier les débouchés en agriculture biologique"},{"$f":"_xlfn.CONCAT(AUM!E30:E32)","v":"Bio du Gers, Agrobio 40,Bio du Gers, Agrobio 40, Bio du Gers, Agrobio 40, "},"PHY8, PHY9, FER2, CPRA",{"$f":"MIN(AUM!G30:G32)","v":"2023-01-01"},{"$f":"MAX(AUM!H30:H32)","v":"2025-12-31"},1095,"Haute"]
[null,"AUM",{"$f":"AUM!B35","v":"AUM2a : Mettre en place et suivre des sites expérimentaux"},{"$f":"_xlfn.CONCAT(AUM!E37:E39)","v":"IA, CA40, SMD"},"toutes",{"$f":"MIN(AUM!G37:G39)","v":"2023-05-01"},{"$f":"MAX(AUM!H37:H39)","v":"2028-12-31"},2071,"Moyenne"]
[null,"AUM",{"$f":"AUM!B42","v":"AUM2b : Instituer des groupes de travail avec des agriculteurs basés sur les sites expérimentaux"},{"$f":"_xlfn.CONCAT(AUM!E44:E44)","v":"IA, CA40, "},null,{"$f":"MIN(AUM!G44:G44)","v":"2023-06-01"},{"$f":"MAX(AUM!H44:H44)","v":"00:00:00"},-45078,"Faible"]
[null,"AUM",{"$f":"AUM!B47","v":"AUM2c : Développer des réseaux d'agriculteurs sur le bassin du Midour"},{"$f":"_xlfn.CONCAT(AUM!E49:E51)","v":""},null,{"$f":"MIN(AUM!G49:G51)","v":"00:00:00"},{"$f":"MAX(AUM!H49:H51)","v":"00:00:00"},0,"Faible"]
[null,"AUM",{"$f":"AUM!B54","v":"AUM2d : Instituer des groupes de travail avec les techniciens agricoles"},{"$f":"_xlfn.CONCAT(AUM!E56:E58)","v":""},null,{"$f":"MIN(AUM!G56:G58)","v":"00:00:00"},{"$f":"MAX(AUM!H56:H58)","v":"00:00:00"},0,"Moyenne"]
[null,"AUM",{"$f":"AUM!B61","v":"AUM2e : Instaurer une formation continue avec des interventions d'experts à destination de la profession agricole"},{"$f":"_xlfn.CONCAT(AUM!E63:E65)","v":""},null,{"$f":"MIN(AUM!G63:G65)","v":"00:00:00"},{"$f":"MAX(AUM!H63:H65)","v":"00:00:00"},0,"Faible"]
[null,"AUM",{"$f":"AUM!B68","v":"AUM3a : Mettre en place et suivre des sites expérimentaux"},{"$f":"_xlfn.CONCAT(AUM!E70:E72)","v":""},null,{"$f":"MIN(AUM!G70:G72)","v":"00:00:00"},{"$f":"MAX(AUM!H70:H72)","v":"00:00:00"},0,"Faible"]
[null,"AUM",{"$f":"AUM!B75","v":"AUM3b : Instituer des groupes de travail avec des agriculteurs basés sur les sites expérimentaux"},{"$f":"_xlfn.CONCAT(AUM!E77:E79)","v":""},null,{"$f":"MIN(AUM!G77:G79)","v":"00:00:00"},{"$f":"MAX(AUM!H77:H79)","v":"00:00:00"},0,"Moyenne"]
[null,"AUM",{"$f":"AUM!B82","v":"AUM4a : Instituer un groupe de travail avec les acteurs du territoire : arbres, haies champêtres, ripisylves"},{"$f":"_xlfn.CONCAT(AUM!E84:E85)","v":"FDC32 ; PETR Pays d'ArmagnacFDC40 ; IA"},null,{"$f":"MIN(AUM!G84:G85)","v":"00:00:00"},{"$f":"MAX(AUM!H84:H85)","v":"00:00:00"},0,"Haute"]
[null,"AUM",{"$f":"AUM!B88","v":"AUM4b : Instituer un groupe de travail avec les acteurs du territoire : espaces semi-naturels et milieux humides"},{"$f":"_xlfn.CONCAT(AUM!E90:E92)","v":""},null,{"$f":"MIN(AUM!G90:G92)","v":"00:00:00"},{"$f":"MAX(AUM!H90:H92)","v":"00:00:00"},0,"Haute"]
[null,"AUM",{"$f":"AUM!B95","v":"AUM4c : Aménager le bassin versant des plans d'eau pour limiter l'érosion et leur envasement"},{"$f":"_xlfn.CONCAT(AUM!E97)","v":"FDC32/ CAUE/ CD32/ PETR Pays d'Armagnac/ SMD/ SMBVMD, "},"EAU1, EAU2, COV2, SDC2, CPRA",{"$f":"MIN(AUM!G97)","v":"2024-03-01"},{"$f":"MAX(AUM!H97)","v":"2024-12-31"},305,"Haute"]
["Optimisation de la gestion des ressources et des milieux","OGRM",{"$f":"OGRM!B2","v":"OGRM-1a : Poursuivre la mise en conformité des retenues individuelles"},{"$f":"_xlfn.CONCAT(OGRM!E4:E5)","v":"DDT(M)"},null,{"$f":"MIN(OGRM!G4:G5)","v":"2022-01-01"},{"$f":"MAX(OGRM!H4:H5)","v":"2028-12-31"},2556,"Faible"]
[null,"OGRM",{"$f":"OGRM!B8","v":"OGRM-1b : Travailler à la valorisation des retenues sans usage"},{"$f":"_xlfn.CONCAT(OGRM!E10:E11)","v":""},null,{"$f":"MIN(OGRM!G10:G11)","v":"2023-07-01"},{"$f":"MAX(OGRM!H10:H11)","v":"2026-07-15"},1110,"Moyenne"]
[null,"OGRM",{"$f":"OGRM!B14","v":"OGRM-1c : Reconquérir la capacité de stockage des plans d'eau"},{"$f":"_xlfn.CONCAT(OGRM!E16:E17)","v":""},null,{"$f":"MIN(OGRM!G16:G17)","v":"00:00:00"},{"$f":"MAX(OGRM!H16:H17)","v":"00:00:00"},0,"Faible"]
[null,"OGRM",{"$f":"OGRM!B20","v":"OGRM-1d : Intégrer les prélèvements en nappes influençant les cours d'eau dans la gestion"},{"$f":"_xlfn.CONCAT(OGRM!E22:E23)","v":""},null,{"$f":"MIN(OGRM!G22:G23)","v":"00:00:00"},{"$f":"MAX(OGRM!H22:H23)","v":"00:00:00"},0,"Moyenne"]
[null,"OGRM",{"$f":"OGRM!B26","v":"OGRM-2a : Systématiser la transmission d'informations entre irrigants et gestionnaire"},{"$f":"_xlfn.CONCAT(OGRM!E28:E29)","v":""},null,{"$f":"MIN(OGRM!G28:G29)","v":"00:00:00"},{"$f":"MAX(OGRM!H28:H29)","v":"00:00:00"},0,"Faible"]
[null,"OGRM",{"$f":"OGRM!B32","v":"OGRM-2b : Equiper les irrigants en cours d'eau avec des compteurs communicants"},{"$f":"_xlfn.CONCAT(OGRM!E34:E35)","v":""},null,{"$f":"MIN(OGRM!G34:G35)","v":"2020-01-01"},{"$f":"MAX(OGRM!H34:H35)","v":"2028-12-31"},3287,"Faible"]
[null,"OGRM",{"$f":"OGRM!B38","v":"OGRM-2c : Mettre en œuvre des doubles valeurs de débits consignes aux stations de gestion"},{"$f":"_xlfn.CONCAT(OGRM!E40:E41)","v":""},null,{"$f":"MIN(OGRM!G40:G41)","v":"00:00:00"},{"$f":"MAX(OGRM!H40:H41)","v":"00:00:00"},0,"Faible"]
[null,"OGRM",{"$f":"OGRM!B44","v":"OGRM-2d : Continuer et valoriser la gestion anticipée des tours d'eau sur le territoire"},{"$f":"_xlfn.CONCAT(OGRM!E46:E48)","v":""},null,{"$f":"MIN(OGRM!G46:G48)","v":"2022-01-01"},{"$f":"MAX(OGRM!H46:H48)","v":"2028-12-31"},2556,"Faible"]
[null,"OGRM",{"$f":"OGRM!B51","v":"OGRM-3a : Mettre en place et suivre des sites expérimentaux"},{"$f":"_xlfn.CONCAT(OGRM!E53:E54)","v":""},null,{"$f":"MIN(OGRM!G53:G54)","v":"00:00:00"},{"$f":"MAX(OGRM!H53:H54)","v":"00:00:00"},0,"Faible"]
[null,"OGRM",{"$f":"OGRM!B57","v":"OGRM-3b : Instituer des groupes de travail et des formations avec des agriculteurs"},{"$f":"_xlfn.CONCAT(OGRM!E59:E60)","v":""},null,{"$f":"MIN(OGRM!G59:G60)","v":"00:00:00"},{"$f":"MAX(OGRM!H59:H60)","v":"00:00:00"},0,"Moyenne"]
[null,"OGRM",{"$f":"OGRM!B63","v":"OGRM-3c : Acquisition de systèmes de gestion et d'outils d'aide à la décision en irrigation"},{"$f":"_xlfn.CONCAT(OGRM!E65:E66)","v":"CA40"},null,{"$f":"MIN(OGRM!G65:G66)","v":"2023-11-01"},{"$f":"MAX(OGRM!H65:H66)","v":"2026-07-31"},{"$f":"G33-F33","v":1003},"Haute"]
[null,"OGRM",{"$f":"OGRM!B69","v":"OGRM-3d : Acquisition de matériels d'irrigation hydro-performants"},{"$f":"_xlfn.CONCAT(OGRM!E71:E72)","v":"CA40, "},null,{"$f":"MIN(OGRM!G71:G72)","v":"2023-11-01"},{"$f":"MAX(OGRM!H71:H72)","v":"2026-07-31"},1003,"Haute"]
[null,"OGRM",{"$f":"OGRM!B75","v":"OGRM-4a : Réaliser des chantiers collectifs pour la mise aux normes de l'ANC"},{"$f":"_xlfn.CONCAT(OGRM!E77:E78)","v":""},null,{"$f":"MIN(OGRM!G77:G78)","v":"00:00:00"},{"$f":"MAX(OGRM!H77:H78)","v":"00:00:00"},0,"Haute"]
[null,"OGRM",{"$f":"OGRM!B81","v":"OGRM-4b : Créer des milieux humides à vocation épuratoire en sortie de station de traitements des eaux usées"},{"$f":"_xlfn.CONCAT(OGRM!E83:E85)","v":""},null,{"$f":"MIN(OGRM!G83:G85)","v":"00:00:00"},{"$f":"MAX(OGRM!H83:H85)","v":"00:00:00"},0,"Faible"]
[null,"OGRM",{"$f":"OGRM!B88","v":"OGRM-4c : Créer des zones tampons en sortie de réseaux de drainage agricole"},{"$f":"_xlfn.CONCAT(OGRM!E90:E92)","v":""},"CPRA",{"$f":"MIN(OGRM!G90:G92)","v":"00:00:00"},{"$f":"MAX(OGRM!H90:H92)","v":"00:00:00"},0,"Moyenne"]
[null,"OGRM",{"$f":"OGRM!B95","v":"OGRM-5a : Affiner les zones à prioriser et les actions à réaliser"},{"$f":"_xlfn.CONCAT(OGRM!E97:E98)","v":""},null,{"$f":"MIN(OGRM!G97:G98)","v":"2024-03-01"},{"$f":"MAX(OGRM!H97:H98)","v":"2024-12-31"},305,"Faible"]
[null,"OGRM",{"$f":"OGRM!B101","v":"OGRM-5b : Mettre en place des zones pilotes sur le territoire"},{"$f":"_xlfn.CONCAT(OGRM!E103:E104)","v":""},null,{"$f":"MIN(OGRM!G103:G104)","v":"2024-03-01"},{"$f":"MAX(OGRM!H103:H104)","v":"2024-12-31"},305,"Haute"]
[null,"OGRM",{"$f":"OGRM!B107","v":"OGRM-5c : Définir les techniques et les outils adaptés pour une restauration à plus grande échelle"},{"$f":"_xlfn.CONCAT(OGRM!E109:E110)","v":""},null,{"$f":"MIN(OGRM!G109:G110)","v":"2024-03-01"},{"$f":"MAX(OGRM!H109:H110)","v":"2024-12-31"},305,"Moyenne"]
[null,"OGRM",{"$f":"OGRM!B113","v":"OGRM-5d : Travailler à l'effacement des seuils de pompage en rivière"},{"$f":"_xlfn.CONCAT(OGRM!E115:E116)","v":""},null,{"$f":"MIN(OGRM!G115:G116)","v":"2024-03-01"},{"$f":"MAX(OGRM!H115:H116)","v":"2028-12-31"},1766,"Moyenne"]
["Mobilisation de ressources complémentaires","MRC",{"$f":"MRC!B2","v":"MRC-1a : Valoriser les eaux de consommation : STEU de Conte, Nogaro et Villeneuve de Marsan"},{"$f":"_xlfn.CONCAT(MRC!E4:E6)","v":""},null,{"$f":"MIN(MRC!G4:G6)","v":"2020-01-01"},{"$f":"MAX(MRC!H4:H6)","v":"2028-12-31"},3287,"Moyenne"]
[null,"MRC",{"$f":"MRC!B9","v":"MRC-1b : Sensibiliser les industriels sur les possibilités de recyclage de leurs eaux de process"},{"$f":"_xlfn.CONCAT(MRC!E11:E12)","v":""},null,{"$f":"MIN(MRC!G11:G12)","v":"00:00:00"},{"$f":"MAX(MRC!H11:H12)","v":"00:00:00"},0,"Moyenne"]
[null,"MRC",{"$f":"MRC!B15","v":"MRC-2a : Mettre en place des pompages complémentaires hivernaux pour les RSE de Maribot, Lapeyrie, Charros et Arthez - Axe Midour"},{"$f":"_xlfn.CONCAT(MRC!E17:E18)","v":""},null,{"$f":"MIN(MRC!G17:G18)","v":"00:00:00"},{"$f":"MAX(MRC!H17:H18)","v":"00:00:00"},0,"Moyenne"]
[null,"MRC",{"$f":"MRC!B21","v":"MRC-2b : Rehausser les RSE de Maribot et Lapeyrie et créer une (des) retenue(s) déconnectée(s) de substitution - Axe Midour"},{"$f":"_xlfn.CONCAT(MRC!E23:E24)","v":""},null,{"$f":"MIN(MRC!G23:G24)","v":"00:00:00"},{"$f":"MAX(MRC!H23:H24)","v":"00:00:00"},0,"Haute"]
[null,"MRC",{"$f":"MRC!B27","v":"MRC-2c : Connecter les réseaux d'irrigation aux ouvrages de stockage collectifs dans la mesure du possible - Axe Midour"},{"$f":"_xlfn.CONCAT(MRC!E29:E30)","v":""},null,{"$f":"MIN(MRC!G29:G30)","v":"00:00:00"},{"$f":"MAX(MRC!H29:H30)","v":"00:00:00"},0,"Moyenne"]
[null,"MRC",{"$f":"MRC!B33","v":"MRC-2d : Superviser l'optimisation du réservoir de Saint-Gein et la connexion directe des irrigants concernés à cet ouvrage - Axe Ludon"},{"$f":"_xlfn.CONCAT(MRC!E35:E36)","v":""},null,{"$f":"MIN(MRC!G35:G36)","v":"00:00:00"},{"$f":"MAX(MRC!H35:H36)","v":"00:00:00"},0,"Moyenne"]
[null,"MRC",{"$f":"MRC!B39","v":"MRC-2e : Etudier la nécessité de créer une retenue déconnectée de substitution sur le Lusson"},{"$f":"_xlfn.CONCAT(MRC!E41:E42)","v":""},null,{"$f":"MIN(MRC!G41:G42)","v":"00:00:00"},{"$f":"MAX(MRC!H41:H42)","v":"00:00:00"},0,"Moyenne"]
["Accompagnement, sensibilisation et valorisation","ASV",{"$f":"ASV!B2","v":"ASV-1a : Appuyer individuellement les agriculteurs dans leur démarche de progrès : ATI"},{"$f":"_xlfn.CONCAT(ASV!E4:E6)","v":"IA, IA, "},null,{"$f":"MIN(ASV!G4:G6)","v":"2022-07-01"},{"$f":"MAX(ASV!H4:H6)","v":"2022-12-31"},183,"Faible"]
[null,"ASV",{"$f":"ASV!B9","v":"ASV-1b : Appuyer collectivement les agriculteurs dans leur démarche de progrès : GT, formations, journées d'échange"},{"$f":"_xlfn.CONCAT(ASV!E11:E13)","v":"IA, IA, IA, "},null,{"$f":"MIN(ASV!G11:G13)","v":"2022-01-01"},{"$f":"MAX(ASV!H11:H13)","v":"2022-12-31"},364,"Moyenne"]
[null,"ASV",{"$f":"ASV!B16","v":"ASV-1c : Mener des expérimentations"},{"$f":"_xlfn.CONCAT(ASV!E18:E19)","v":""},null,{"$f":"MIN(ASV!G18:G19)","v":"00:00:00"},{"$f":"MAX(ASV!H18:H19)","v":"00:00:00"},0,"Faible"]
[null,"ASV",{"$f":"ASV!B22","v":"ASV-1d : Organiser l'information et la formation pour les conseillers agricoles"},{"$f":"_xlfn.CONCAT(ASV!E24:E26)","v":"IA, IA, "},null,{"$f":"MIN(ASV!G24:G26)","v":"00:00:00"},{"$f":"MAX(ASV!H24:H26)","v":"00:00:00"},0,"Moyenne"]
[null,"ASV",{"$f":"ASV!B29","v":"ASV-1e : Mobiliser les mesures agro-environnementales et climatiques"},{"$f":"_xlfn.CONCAT(ASV!E31:E33)","v":"CA32, CA40, IA, "},"toutes",{"$f":"MIN(ASV!G31:G33)","v":"2022-01-01"},{"$f":"MAX(ASV!H31:H33)","v":"2028-12-31"},2556,"Faible"]
[null,"ASV",{"$f":"ASV!B36","v":"ASV-1f : Rechercher et construire de nouvelles mesures d'aide pour les agriculteurs"},{"$f":"_xlfn.CONCAT(ASV!E38:E39)","v":"IA, IA, "},null,{"$f":"MIN(ASV!G38:G39)","v":"2021-01-01"},{"$f":"MAX(ASV!H38:H39)","v":"2028-12-31"},2921,"Haute"]
[null,"ASV",{"$f":"ASV!B42","v":"ASV-2a : Développer des pratiques alternatives pour la gestion des paysages à l'échelle des collectivités"},{"$f":"_xlfn.CONCAT(ASV!E44:E45)","v":"FDC / IAFDC32 / PETR / AP32"},"CPRA",{"$f":"MIN(ASV!G44:G45)","v":"1905-07-15"},{"$f":"MAX(ASV!H44:H45)","v":"00:00:00"},-2023,"Haute"]
[null,"ASV",{"$f":"ASV!B48","v":"ASV-2b : Développer des pratiques alternatives pour la gestion de l'eau à l'échelle des collectivités"},{"$f":"_xlfn.CONCAT(ASV!E50:E51)","v":""},null,{"$f":"MIN(ASV!G50:G51)","v":"00:00:00"},{"$f":"MAX(ASV!H50:H51)","v":"00:00:00"},0,"Haute"]
[null,"ASV",{"$f":"ASV!B54","v":"ASV-3a : Elaborer un plan d'information, de sensibilisation et de valorisation"},{"$f":"_xlfn.CONCAT(ASV!E56:E57)","v":""},null,{"$f":"MIN(ASV!G56:G57)","v":"00:00:00"},{"$f":"MAX(ASV!H56:H57)","v":"00:00:00"},0,"Faible"]
["Gouvernance","GOUV",{"$f":"Gouv!B2","v":"GOUV-1 : Maintenir la gouvernance du projet de territoire et la mobilisation des instances"},{"$f":"_xlfn.CONCAT(Gouv!E4:E5)","v":"IA, IA, "},null,{"$f":"MIN(Gouv!G4:G5)","v":"2020-01-01"},{"$f":"MAX(Gouv!H4:H5)","v":"2028-12-31"},3287,"Moyenne"]
[null,"GOUV",{"$f":"Gouv!B8","v":"GOUV-2 : Animer et coordonner le projet de territoire"},{"$f":"_xlfn.CONCAT(Gouv!E10:E11)","v":"IA, IA, "},null,{"$f":"MIN(Gouv!G10:G11)","v":"2020-01-01"},{"$f":"MAX(Gouv!H10:H11)","v":"2028-12-31"},3287,"Moyenne"]
[null,"GOUV",{"$f":"Gouv!B14","v":"GOUV-3 : Elaborer un tableau de bord pour suivre la mise en œuvre du projet de territoire"},{"$f":"_xlfn.CONCAT(Gouv!E16)","v":"IA, "},null,{"$f":"MIN(Gouv!G16)","v":"2020-01-01"},{"$f":"MAX(Gouv!H16)","v":"2028-12-31"},3287,"Moyenne"]

{"sheet":"CMU_résumé","index":2,"n_rows":11,"n_cols":9,"rows_kept":11,"cut":false,"hidden":false,"merged":[[0,0,0,1]]}
["CMU - Connaissance des milieux et des usages",{"$nulls":5},{"$f":"'PTGE Midour Synthèse'!C1","v":"le 10/03/2025"}]
[]
["Code","Tâche","Actions à réaliser au préalable","Actions qui en dépendent ou en lien","Etat d'avancement","Progression","E² (Mm3)","Objectif PTGE 2035","Commentaires"]
["CMU1","Quantifier les relations nappes-rivières et évaluer l'impact des prélèvements en eaux souterraines","-","OGRM1d",{"$f":"CMU!F6","v":5},{"$f":"CMU!P6","v":5},{"$f":"CMU!O6","v":0},null,"En cours de lancement dans le cadre de l'étude VP."]
["CMU2","Etudier la qualité sur le bassin du Midour","-","-",{"$f":"CMU!F11","v":100},{"$f":"CMU!P11","v":100},{"$f":"CMU!O11","v":0},"2020-2021 : Etude Midour 32\n2021-2022 : Etude Midou 40\nProduction d’un rapport (EdL)\nProposition de mesures correctives  sur le plan d’eau et le BV amont aval\nPorté à connaissance des acteurs du BV du Midour","Etude des réservoirs du Midour 32 terminée. Restitution en août 2023.\nEtude des réservoirs du Midour 40 lancée au premier semestre 2022.\nRestitution effectuée fin 2024.\n"]
["CMU3","Améliorer le suivi hydrométrique du Ludon","-","-",{"$f":"CMU!F18","v":100},{"$f":"CMU!P18","v":100},{"$f":"CMU!O18","v":0},"","La station hydrométrique a été installée et est fonctionnelle depuis 2020.\nUn suivi est en place.\nAcune échelle limnimétrique n'a été installée à ce jour."]
["CMU4","Evaluer l'état d'envasement des ouvrages de stockage d'eau et les actions d'aménagement pour limiter l'érosion","-","AUM4c, OGRM1b, CMU2",{"$f":"CMU!F24","v":41.5},{"$f":"CMU!P24","v":41.5},{"$f":"CMU!O24","v":0},"2022 : Lancement de l’étude (durée à préciser)","Premières discussions pour concevoir un projet lancées fin 2022 mais interrompues en 2023.\nA reprendre pour les plans d'eau privés, selon besoins exprimés.\nBathymétries des 5 réservoirs IA réalisées dans le cadre de l'étude qualité des eaux du Midour (CMU2). \n"]
["CMU5","Connaître les besoins culturaux d'irrigation par campagne et la répartition de la ressource associée","-","-",{"$f":"CMU!F29","v":75},{"$f":"CMU!P29","v":75},{"$f":"CMU!O29","v":0},"","Premières discussions pour concevoir un projet lancées fin 2022 mais interrompues en 2023.\nA reprendre. Bathymétries des 5 réservoirs IA réalisées dans le cadre de l'étude qualité des eaux du Midour (CMU2)."]
["CMU6","Expertiser les réseaux collectifs d'irrigation à moderniser","-","MRC2c",{"$f":"CMU!F37","v":35},{"$f":"CMU!P37","v":35},{"$f":"CMU!O37","v":0},"2020 : Constitution du GT\n2021 et suivante s : programmes annuels d’expertise","Etude des réseaux d'irrigation du Gers réalisée indépendemment du PTGE par la Région Occitanie avec le concours des chambres d'agriculture départementales.\nEn attente de l'extraction des résultats par la CA32 pour le Midour.\nRetardé par la sortie d'appel à projet prioritaire."]
["CMU7","Recenser et inventorier le patrimoine naturel et les éléments paysagers à protéger","-","-",{"$f":"CMU!F44","v":58.333333333333336},{"$f":"CMU!P44","v":58.333333333333336},{"$f":"CMU!O44","v":0},"2023 : aboutissement de l’action au mois sur le territoire de l’Armagnac","données globalement incluses dans les projets Trame Verte 32 & 40, accompagnement vers les collectivités débuté pour le Gers, prévu en 2025 pour les Landes."]
[null,null,null,"Avancement moyen CMU",{"$f":"AVERAGE(E4:E10)","v":59.261904761904759},{"$f":"AVERAGE(F4:F10)","v":59.261904761904759},{"$f":"SUM(G4:G10)","v":0}]

{"sheet":"CMU","index":3,"n_rows":44,"n_cols":22,"rows_kept":44,"cut":false,"hidden":false,"merged":[[43,21,43,22],[44,5,44,7],[59,2,59,6],[45,5,45,7],[49,2,49,15],[51,2,51,6],[57,5,57,6],[118,2,118,15],[122,5,122,6],[67,2,67,6],[75,2,75,15],[79,5,79,6],[81,2,81,6],[90,2,90,6],[84,5,84,7],[85,5,85,7],[86,5,86,7],[82,13,82,17],[107,5,107,7],[104,18,104,19],[111,2,111,6],[97,2,97,15],[101,5,101,6],[103,2,103,6],[106,5,106,7],[104,12,104,13],[104,14,104,17],[135,12,135,13],[135,14,135,17],[135,18,135,20],[135,21,135,24],[140,5,140,7],[139,5,139,7],[138,5,138,7],[124,2,124,6],[132,5,132,6],[134,2,134,6],[137,5,137,7],[162,5,162,7],[166,2,166,6],[173,2,173,15],[144,2,144,6],[151,2,151,15],[155,5,155,6],[157,2,157,6],[160,5,160,7],[158,12,158,14],[158,15,158,17],[14,16,17,16],[3,16,5,16],[9,16,10,16],[40,16,43,16],[32,16,36,16],[21,16,23,16]]}
[null,"Connaissance des milieux et des usages",null,null,null,{"$f":"'PTGE Midour Synthèse'!C1","v":"le 10/03/2025"}]
[null,"CMU1 - Quantifier les relations nappes-rivières et évaluer l'impact des prélèvements en eaux souterraines"]
["Code","Tâche","Maître d'ouvrage (MO)","Partenaires techniques","Opérateurs","Etat d'avancement","Début","Fin","Commentaires de la ligne","Action engagé (MAEC ou autre)","Surface engagé (ha)","Vol d'eau récupéré","Economie d'eau attendue (Mm3)","FC","E² (Mm3)","Progression (%)","Commentaire général",null,null,"#DBDBDB","Non démarré","Action non initiée / qui découle de l'avancement d'une préalable pour être démarrée"]
["CMU1a","Phase de conception","IA","DDTM40, Irrigadour, SYDEC, autres préleveurs éventuels","IA, ","Non démarré",{"$nulls":8},{"$f":"M4*N4","v":0},10,"En cours de lancement dans le cadre de l'étude VP.",null,null,"#FFCCFF","Engagé","En cours, dans les étapes préliminaires"]
["CMU1b","Etude","IA","DDTM40, Irrigadour, SYDEC, autres préleveurs éventuels","à définir, ","Non démarré",null,null,"",null,null,null,0,null,{"$f":"M5*N5","v":0},0,null,null,null,"#CC66FF","Bien avancé","En cours, plutôt dans les dernières étapes"]
[null,"","",null,null,{"$f":"P6","v":5},null,null,"",null,null,null,{"$f":"SUM(M4:M5)","v":0},{"$f":"SUM(N4:N5)","v":0},{"$f":"SUM(O4:O5)","v":0},{"$f":"AVERAGE(P4:P5)","v":5},null,null,null,"#A9D08E","Terminée","Pour les actions ponctuelles avec une date de fin"]
[{"$nulls":19},"#A9D08E","Se poursuit","Action qui a vocation à durer dans le temps  / Sans date de fin"]
[null,"CMU2 - Etudier la qualité sur le bassin du Midour"]
["Code","Tâche","Maître d'ouvrage (MO)","Partenaires techniques","Opérateurs","Etat d'avancement","Début","Fin","Commentaires de la ligne","Action engagé (MAEC ou autre)","Surface engagé (ha)","Vol d'eau récupéré","Economie d'eau attendue (Mm3)","FC","E² (Mm3)","Progression (%)","Commentaire général"]
["CMU2a","Projet d'étude la qualitée d'eau","IA","IA, AEAG, DDTM40, DDT32, Syndicat de rivière 40 et 32, Fédération de pêche 40 et 32, CA40, CA32, OFB40, OFB32, Nature en Occitanie, Adasea, Association Botanique Gersoise, etc","Aquascope, AAPPMA 32, ","Terminée","2022-01-01","2027-12-31",{"$nulls":4},"","",0,100,"La première consultation en 2020 n'a pas abouti car les offres étaient supérieures au financement possible.\nLa bathymétrie des réservoirs du Midour 32 a été réalisée début 2021 par la fédération de pêche 32.\nL'étude Aquascop sur le Midour aval est terminée fin 2024, à la suite de l'étude sur le Midour amont, déjà terminée."]
[null,"","",null,null,{"$f":"P11","v":100},null,null,"",null,null,null,{"$f":"SUM(M10:M10)","v":0},{"$f":"SUM(N10:N10)","v":0},{"$f":"SUM(O10:O10)","v":0},{"$f":"AVERAGE(P10)","v":100}]
[]
[null,"CMU3 - Améliorer le suivi hydrométrique du Ludon"]
["Code","Tâche","Maître d'ouvrage (MO)","Partenaires techniques","Opérateurs","Etat d'avancement","Début","Fin","Commentaires de la ligne","Action engagé (MAEC ou autre)","Surface engagé (ha)","Vol d'eau récupéré","Economie d'eau attendue (Mm3)","FC","E² (Mm3)","Progression (%)","Commentaire général"]
["CMU3a","Installation de la station"," DREAL Nouvelle Aquitaine","IA, CACG, DDTM40, ASA Ludon Gaube, Irrigadour","DREAL NA, ","Terminée","2020-10-01","2020-12-31",{"$nulls":4},"","",0,100,"La station permet une mesure continue des débits du cours d'eau.\nAucune échelle limnimétrique et/ou station complémentaire n'ont été installées à ce jour.\nUn des objectifs de ce suivi est également d'évaluer l'impact de la suppression des prélèvements en cours d'eau en lien avec le projet REUT de Conte."]
["CMU3b","Mise en service"," DREAL Nouvelle Aquitaine","IA, CACG, DDTM40, ASA Ludon Gaube, Irrigadour","DREAL NA, ","Terminée","2021-03-01","2021-03-31","",null,null,null,"","",0,100]
["CMU3c","Suivi"," DREAL Nouvelle Aquitaine","IA, CACG, DDTM40, ASA Ludon Gaube, Irrigadour","DREAL NA Irrigadour, ","Se poursuit","2021-04-01","2024-04-23","",null,null,null,"","",0,100]
[null,"","",null,null,{"$f":"P18","v":100},{"$nulls":6},{"$f":"SUM(M15:M17)","v":0},{"$f":"SUM(N15:N17)","v":0},{"$f":"SUM(O15:O17)","v":0},{"$f":"AVERAGE(P15:P17)","v":100}]
[]
[null,"CMU4 - Evaluer l'état d'envasement des ouvrages de stockage d'eau et les actions d'aménagement pour limiter l'érosion"]
["Code","Tâche","Maître d'ouvrage (MO)","Partenaires techniques","Opérateurs","Etat d'avancement","Début","Fin","Commentaires de la ligne","Action engagé (MAEC ou autre)","Surface engagé (ha)","Vol d'eau récupéré","Economie d'eau attendue (Mm3)","FC","E² (Mm3)","Progression (%)","Commentaire général"]
["CMU4a","Phase de conception : réalisation du groupe de travail","Organisation du groupe de travail : Institution Adour","Ensemble des acteurs du territoire","IA, AEAG, Vivadour, ","Se poursuit","2022-11-01","2024-06-30",{"$nulls":4},"","",0,50,"Une proposition de projet a été faite en 2022 par Vivadour. Après échanges avec l'agence de l'eau, il a été décidé que le projet se concentrerait sur un ou plusieurs sous-bassin et sur les plans d'eau les plus grands. Le choix des sous-bassins et des plans d'eau s'appuiera plusieurs critères (zones de forte érosion, risque de déficit, ...)."]
["CMU4b","Bathymétrie + suivi des sédiments","Organisation du groupe de travail : Institution Adour","Ensemble des acteurs du territoire","IA, AEAG, Vivadour, ","Se poursuit","2022-01-01","2027-12-31","",null,null,null,"","",0,33]
[null,"","",null,null,{"$f":"P24","v":41.5},{"$nulls":6},{"$f":"SUM(M22:M23)","v":0},{"$f":"SUM(N22:N23)","v":0},{"$f":"SUM(O22:O23)","v":0},{"$f":"AVERAGE(P22:P23)","v":41.5}]
[]
[null,"CMU5 - Connaître les besoins culturaux d'irrigation par campagne et la répartition de la ressource associée"]
["Code","Tâche","Maître d'ouvrage (MO)","Partenaires techniques","Opérateurs","Etat d'avancement","Début","Fin","Commentaires de la ligne","Action engagé (MAEC ou autre)","Surface engagé (ha)","Vol d'eau récupéré","Economie d'eau attendue (Mm3)","FC","E² (Mm3)","Progression (%)","Commentaire général"]
["CMU5a","Recensement en début de campagne","IRRIGADOUR","Maïsadour, Vivadour, industries agro-alimentaires, groupements de producteurs, CA32, CA40, etc",null,"Se poursuit","2023-01-01","2028-12-31",{"$nulls":4},"","",0,75,"Remonter jusqu'à 2020 (lancement de la mise en œuvre du PTGE)\nsollicitation annuelle (novembre) à l'occasion du \"recensement des besoins\" (demande de renouvellement de l'autorisation de prélèvement n+1), complété sur certains sousbassins par une nouvelle enquête juste avant campagne d'irrigation ; taux de retour moyen 60 à 80%"]
[null,"","",null,null,{"$f":"P29","v":75},{"$nulls":6},{"$f":"SUM(M28:M28)","v":0},{"$f":"SUM(N28:N28)","v":0},{"$f":"SUM(O28:O28)","v":0},{"$f":"AVERAGE(P28)","v":75}]
[]
[null,"CMU6 - Expertiser les réseaux collectifs d'irrigation à moderniser"]
["Code","Tâche","Maître d'ouvrage (MO)","Partenaires techniques","Opérateurs","Etat d'avancement","Début","Fin","Commentaires de la ligne","Action engagé (MAEC ou autre)","Surface engagé (ha)","Vol d'eau récupéré","Economie d'eau attendue (Mm3)","FC","E² (Mm3)","Progression (%)","Commentaire général"]
["CMU6a","Conception de l'étude 40","Animateur territorial agricole, CA32, CA40, ASA hydrauliques","Animateur territorial agricole, CA32, CA40, bureaux d'études, etc","CA40, ","Non démarré",{"$nulls":6},"","",0,0,"Des discussions ont été engagées en 2023 sur cette action. L'appel à projet \"Economie et efficience de l'eau\" de l'AEAG sorti en mai 2023 pourrait être l'opportunité de faire accélérer le lancement de cette action."]
["CMU6b","Étude 40","Animateur territorial agricole, CA32, CA40, ASA hydrauliques","Animateur territorial agricole, CA32, CA40, bureaux d'études, etc","CA40, ","Non démarré",null,null,"",null,null,null,"","",0,0]
["CMU6c","Extraction des données de l'étude 32","Animateur territorial agricole, CA32, CA40, ASA hydrauliques","Animateur territorial agricole, CA32, CA40, bureaux d'études, etc","CA32, ","Terminée","2023-11-01","2023-12-31","",null,null,null,"","",0,100]
["CMU6d","Analyse et scénario modernisation et interconnexion","Animateur territorial agricole, CA32, CA40, ASA hydrauliques","Animateur territorial agricole, CA32, CA40, bureaux d'études, etc","CA32, ","Engagé","2024-01-01","2024-08-31","",null,null,null,"","",0,40]
[null,"","",null,null,{"$f":"P37","v":35},{"$nulls":6},{"$f":"SUM(M33:M36)","v":0},{"$f":"SUM(N33:N36)","v":0},{"$f":"SUM(O33:O36)","v":0},{"$f":"AVERAGE(P33:P36)","v":35}]
[]
[null,"CMU7 - Recenser et inventorier le patrimoine naturel et les éléments paysagers à protéger"]
["Code","Tâche","Maître d'ouvrage (MO)","Partenaires techniques","Opérateurs","Etat d'avancement","Début","Fin","Commentaires de la ligne","Action engagé (MAEC ou autre)","Surface engagé (ha)","Vol d'eau récupéré","Economie d'eau attendue (Mm3)","FC","E² (Mm3)","Progression (%)","Commentaire général"]
["CMU7a","Recensement des éléments à protéger","Animation : IA","Collectivités, AP32, ADASEA, AT32, AT40, Sepanso40, Nature en Occitanie, Association botanique gersoise, DDTM40, DDT32, OFB","IA, acteurs agricoles, ","Terminée","2023-01-01","2023-12-31","Réalisé via le projet Trame Verte 32 & 40 dans l'état des lieux",null,null,null,"","",0,100,"données globalement incluses dans les projets Trame Verte 32 & 40, accompagnement vers les collectivités débuté pour le Gers, prévu en 2025 pour les Landes."]
["CMU7b","Sélection des éléments à protéger","Animation : IA","Collectivités, AP32, ADASEA, AT32, AT40, Sepanso40, Nature en Occitanie, Association botanique gersoise, DDTM40, DDT32, OFB","IA, acteurs agricoles, ","Bien avancé","2024-01-01","2024-04-30","Réalisé via le projet Trame Verte 32 & 40 dans l'état des lieux : le grain fonctionnel est à préserver.",null,null,null,"","",0,50]
["CMU7c","Sensibilisation auprès des collectivités","Animation : IA","Collectivités, AP32, ADASEA, AT32, AT40, Sepanso40, Nature en Occitanie, Association botanique gersoise, DDTM40, DDT32, OFB","IA, acteurs agricoles, ","Engagé","2024-12-01",null,"Les opérations de sensibilisation et animations en pied de haie ont débuté dans le Gers. ",null,null,null,"","",0,25]
[{"$nulls":5},{"$f":"P44","v":58.333333333333336},{"$nulls":6},{"$f":"SUM(M41:M43)","v":0},{"$f":"SUM(N41:N43)","v":0},{"$f":"SUM(O41:O43)","v":0},{"$f":"AVERAGE(P41:P43)","v":58.333333333333336}]

{"sheet":"AUM_résumé","index":4,"n_rows":8,"n_cols":10,"rows_kept":8,"cut":false,"hidden":false,"merged":[[0,0,0,1],[3,9,6,9]]}
["AUM - Adaptation des usages aux milieux",{"$nulls":4},{"$f":"'PTGE Midour Synthèse'!C1","v":"le 10/03/2025"}]
[]
["Code","Tâche","Actions à réaliser au préalable","Actions qui en dépendent ou en lien","Etat d'avancement","Progression","E² (Mm3)","Objectif PTGE 2035","Commentaires"]
["AUM1","Développer des filières durables sur le territoire",null,null,{"$f":"AVERAGE(AUM!F5,AUM!F15,AUM!F26,AUM!F33)","v":38.75},{"$f":"AVERAGE(AUM!Q5,AUM!Q15,AUM!Q26,AUM!Q33)","v":38.75},{"$f":"SUM(AUM!N5,AUM!N15,AUM!N26,AUM!N33)","v":1.40679E-2},null,"des éléments dispo chez les partenaires agricoles","Des filières sont déjà en cours de développement sur le territoire et alentours. Un projet pour tirer parti de ces filières est en cours de réflexion mais sa mise en place dépendra de la charge de travail et du déroulement des autres projets plus prioritaires.\nPour l'action AUM1a \"Mettre en place un groupe de travail sur le développement de filières durables sur le territoire et alentours\", il est envisagé de s'appuyer sur le comité agricole en réalisant des réunions thématiques 1 à 2 fois par an notamment sur le thème des filières. La conception d'un nouveau groupe de travail qui ferait appel aux mêmes acteurs semblent superflue."]
["AUM2","Développer des pratiques culturales permettant de conserver et d'optimiser les services rendus par les sols",null,null,{"$f":"AVERAGE(AUM!F40,AUM!F45,AUM!F52,AUM!F59,AUM!F66)","v":12},{"$f":"AVERAGE(AUM!Q40,AUM!Q45,AUM!Q52,AUM!Q59,AUM!Q66)","v":12},{"$f":"SUM(AUM!P40,AUM!P45,AUM!P52,AUM!P59,AUM!P66)","v":0},"1,75 Mm³\n2025 : 8 60 ha de SCOP et vignes ayant engagé un changement de pratiques\n400 km de haies et ripisylves","des éléments via les MAEC mises en place, axe de travail à poursuivre avec les partenaires agricoles"]
["AUM3","Développer une agriculture biologique adaptée au territoire",null,null,{"$f":"AVERAGE(AUM!F73,AUM!F80)","v":3.3333333333333335},{"$f":"AVERAGE(AUM!Q73,AUM!Q80)","v":3.3333333333333335},{"$f":"SUM(AUM!P73,AUM!P80)","v":0},null,"des éléments dispo chez les partenaires agricoles"]
["AUM4","Développer des pratiques d'aménagement de l'espace rural","CMU4",null,{"$f":"AVERAGE(AUM!F86,AUM!F93,AUM!F98)","v":24.055555555555554},{"$f":"AVERAGE(AUM!Q86,AUM!Q93,AUM!Q98)","v":24.055555555555554},{"$f":"SUM(AUM!P86,AUM!P93,AUM!P98)","v":0},"2035 : 25 000 ha avec couverts végétaux, intercultures, diminution du travail du sol, semis direct sous couvert\n1 235 ha avec agroforesterie, haies, ripisylves","Etude filière AB programmée pour 2024"]
[null,null,null,"Avancement moyen AUM",{"$f":"AVERAGE(E4:E7)","v":12.012499999999999},{"$f":"AVERAGE(F4:F7)","v":12.012499999999999},{"$f":"SUM(G4:G7)","v":1.40679E-2}]

{"sheet":"AUM","index":5,"n_rows":98,"n_cols":23,"rows_kept":98,"cut":false,"hidden":false,"merged":[[105,5,105,6],[107,2,107,6],[108,13,108,14],[110,5,110,7],[101,2,101,16],[159,5,159,6],[138,2,138,6],[139,13,139,14],[141,5,141,7],[111,5,111,7],[115,2,115,6],[122,2,122,16],[126,5,126,6],[128,2,128,6],[136,5,136,6],[142,5,142,7],[143,5,143,7],[144,5,144,7],[148,2,148,6],[155,2,155,16],[177,2,177,16],[161,2,161,6],[162,13,162,15],[164,5,164,7],[166,5,166,7],[170,2,170,6]]}
[null,"Adaptation des usages aux milieux",null,null,null,{"$f":"'PTGE Midour Synthèse'!C1","v":"le 10/03/2025"}]
[null,"AUM1a : Mettre en place un groupe de travail sur le développement de filières durables sur le territoire et alentours"]
[null,"Tâche","Maître d'ouvrage (MO)","Partenaires techniques","Opérateurs","Etat d'avancement","Début","Fin","Commentaires de la ligne","Action engagé (MAEC ou autre)","Surface engagé (ha)","Montant engagé (€)","Vol d'eau économisé/ha","Economie d'eau attendue (Mm3)","FC","E² (Mm3)","Progression (%)","Commentaire général",null,null,"#DBDBDB","Non démarré","Action non initiée / qui découle de l'avancement d'une préalable pour être démarrée"]
[null,"à définir","IA","Ensemble des acteurs du territoire","Ensemble des acteurs du territoire, ","Non démarré",null,null,"après AUM1 b c d",{"$nulls":4},0,0,{"$f":"N4*O4","v":0},0,"des éléments dispo chez les partenaires agricoles",null,null,"#FFCCFF","Engagé","En cours, dans les étapes préliminaires"]
[null,"","",null,null,{"$f":"Q5","v":0},null,null,"",{"$nulls":4},{"$f":"SUM(N4:N4)","v":0},{"$f":"SUM(O4:O4)","v":0},{"$f":"SUM(P4:P4)","v":0},{"$f":"AVERAGE(Q4:Q4)","v":0},null,null,null,"#CC66FF","Bien avancé","En cours, plutôt dans les dernières étapes"]
[{"$nulls":20},"#A9D08E","Terminée","Pour les actions ponctuelles avec une date de fin"]
[null,"AUM1b : Etude de faisabilité : redynamiser l'élevage en pâturage sur les têtes de bassins et valoriser les systèmes agropastoraux",{"$nulls":18},"#DBDBDB","Se poursuit","Action qui a vocation à durer dans le temps  / Sans date de fin"]
[null,"Tâche","Maître d'ouvrage (MO)","Partenaires techniques","Opérateurs","Etat d'avancement","Début","Fin","Commentaires de la ligne","Action engagé (MAEC ou autre)","Surface engagé (ha)","Montant engagé (€)","Vol d'eau récupéré","Economie d'eau attendue (Mm3)","FC","E² (Mm3)","Progression (%)","Commentaire général"]
[null,"Conception de l'étude","ADASEA, Vivadour, CA32","AUM1a, CERFRANCE, AGROBIO40, Bio du Gers","ADASEA, CA32, ","Terminée","2023-07-01","31/06/2024",{"$nulls":5},0,0,{"$f":"N9*O9","v":0},90,"des éléments via les MAEC mises en place, axe de travail à poursuivre avec les partenaires agricoles"]
[null,"Objectif 2028 : 100% des parcours volaille végétalisés => Maïsadour","Maïsadour",null,"ADASEA, CA32, ","Bien avancé","2024-07-01","31/06/2025",{"$nulls":7},{"$f":"N10*O10","v":0},80,"D'après AC (Maïsadour) le 07/03/2025"]
[null,"Mise en place d'un GT pour proposer des actions au regard des résultats",null,null,"ADASEA, CA32, ","Engagé","2025-07-01","2025-12-31",{"$nulls":7},{"$f":"N11*O11","v":0},20,"Faire le lien avec autre démarche territoriale en cours par ADASEA (équipe Life Coteaux Gascons) sur les actions mises en place dont la finalité est la même."]
[null,"OC_MIDO_HBV2",null,"CA32","Institution Adour","Se poursuit",null,null,null,"OC_MIDO_HBV2",{"$f":"[1]OC_HBV2!$J$26","v":1438.56},{"$f":"[1]OC_HBV2!$K$26","v":932356.75},{"$f":"[1]OC_HBV2!$L$16","v":0},{"$f":"[1]OC_HBV2!$M$16","v":0},1,{"$f":"N12*O12","v":0},60,"Bilan surfaces et montants engagés en 2023 et 2024 (mettre à jour avec 2025 en juin/juillet)"]
[null,"OC_MIDO_HBV3",null,"CA32","Institution Adour","Se poursuit",null,null,null,"OC_MIDO_HBV3",{"$f":"[1]OC_HBV3!$J$19","v":1032.2900000000002},{"$f":"[1]OC_HBV3!$K$19","v":806783.90000000014},{"$f":"[1]OC_HBV3!$L$15","v":0},{"$f":"[1]OC_HBV3!$M$15","v":0},1,0,60,"Bilan surfaces et montants engagés en 2023 et 2024 (mettre à jour avec 2025 en juin/juillet)"]
[{"$nulls":14},1,0]
[null,"","",null,null,{"$f":"Q15","v":62},null,null,"",null,{"$f":"SUM(K12:K14)","v":2470.8500000000004},{"$f":"SUM(L12:L14)","v":1739140.6500000001},null,{"$f":"SUM(N9:N9)","v":0},null,{"$f":"SUM(P9:P9)","v":0},{"$f":"AVERAGE(Q9:Q13)","v":62}]
[]
[null,"AUM1c : Etude de faisabilité : filières de valorisation des intercultures, des pratiques de conservation des sols et d'agroforesterie"]
[null,"Tâche","Maître d'ouvrage (MO)","Partenaires techniques","Opérateurs","Etat d'avancement","Début","Fin","Commentaires de la ligne","Action engagé (MAEC ou autre)","Surface engagé (ha)","Montant engagé (€)","Vol d'eau récupéré (mm/ha)","Economie d'eau attendue (Mm3)","FC","E² (Mm3)","Progression (%)","Commentaire général"]
[null,"NA_MI40_FER2","Maïsadour, Vivadour, CA32, CA40, AFAF","CA40","Institution Adour","Engagé","2024-05-15","2029-05-14",null,"NA_MI40_FER2",{"$f":"[1]NA_FER2!$J$8","v":21.8},{"$f":"[1]NA_FER2!$K$8","v":14824},{"$f":"[1]NA_FER2!$L$8","v":0},{"$f":"[1]NA_FER2!$M$8","v":0},1,{"$f":"N19*O19","v":0},60,"des éléments dispo chez les partenaires agricoles"]
[null,"OC_MIDO_COV2",null,"CA32","Institution Adour","Engagé","2023-05-15","2028-05-14",null,"OC_MIDO_COV2",{"$f":"[1]OC_COV2!$J$8","v":156.31},{"$f":"[1]OC_COV2!$K$8","v":100000},{"$f":"[1]OC_COV2!$L$8","v":180},{"$f":"[1]OC_COV2!$M$8","v":1.40679E-2},1,{"$f":"N20*O20","v":1.40679E-2},60]
[null,"OC_MIDO_SDC1",null,"CA32","Institution Adour","Engagé","2023-05-15","2028-05-14",null,"OC_MIDO_SDC1",{"$f":"[1]OC_SDC1!$J$10","v":180.02},{"$f":"[1]OC_SDC1!$K$10","v":50000},{"$f":"[1]OC_SDC1!$L$10","v":0},{"$f":"[1]OC_SDC1!$M$10","v":0},1,0,60]
[null,"OC_MIDO_VIT1",null,"CA32","Institution Adour","Engagé","2023-05-15","2028-05-14",null,"OC_MIDO_VIT1",{"$f":"[1]OC_VIT1!$J$9","v":38.849999999999994},{"$f":"[1]OC_VIT1!$K$9","v":61577.3},{"$f":"[1]OC_VIT1!$L$9","v":0},{"$f":"[1]OC_VIT1!$M$9","v":0},1,0,60]
[null,"NA_MI40_EAU2",null,"CA40","Institution Adour","Engagé","2024-05-15","2029-05-14",null,"NA_MI40_EAU2",{"$f":"[1]NA_EAU2!$J$8","v":40},{"$f":"[1]NA_EAU2!$K$8","v":42000},{"$f":"[1]NA_EAU2!$L$8","v":0},{"$f":"[1]NA_EAU2!$M$8","v":0},1,{"$f":"N23*O23","v":0},20]
[]
[]
[null,"","",null,null,{"$f":"Q26","v":52},{"$nulls":4},{"$f":"SUM(K19:K25)","v":436.98},{"$f":"SUM(L19:L25)","v":268401.3},null,{"$f":"SUM(N19:N25)","v":1.40679E-2},null,{"$f":"SUM(P19:P25)","v":1.40679E-2},{"$f":"AVERAGE(Q19:Q25)","v":52}]
[]
[null,"AUM1d : Etudier les débouchés en agriculture biologique"]
[null,"Tâche","Maître d'ouvrage (MO)","Partenaires techniques","Opérateurs","Etat d'avancement","Début","Fin","Commentaires de la ligne","Action engagé (MAEC ou autre)","Surface engagé (ha)","Montant engagé (€)","Vol d'eau récupéré","Economie d'eau attendue (Mm3)","FC","E² (Mm3)","Progression (%)","Commentaire général"]
[null,"Conception de l'étude","AGROBIO40, Bio du Gers, etc","AUM1a","Bio du Gers, Agrobio 40,","Terminée","2023-01-01","2023-12-31","Demande de subvention déposée / recrutement alternante pour mener l'étude",{"$nulls":4},0,0,{"$f":"N30*O30","v":0},90,"Etude filière démarrée en 2024 : partenariat entre Agrobio40 et Bios du Gers"]
[null,"Mise en œuvre","Agrobio40",null,"Bio du Gers, Agrobio 40, ","Engagé","2024-01-01","31/06/2025","Premières rencontres agri en fin 2024 par Auriane Coquin",{"$nulls":4},0,0,{"$f":"N31*O31","v":0},33,"La méthodologie de travail pour l'étude de la filière Bio a été discuté avec l'IA. Un travail d'enquête auprès des acteurs de la filière va débuter 1er trimestre 2025."]
[null,"Mise en place d'un GT pour proposer des actions au regard des résultats",null,null,"Bio du Gers, Agrobio 40, ","Non démarré","2025-07-01","2025-12-31","Action ultérieure à CMU4",{"$nulls":4},0,0,{"$f":"N32*O32","v":0},0,"à suivre après compilation des premiers résultats"]
[null,"","",null,null,{"$f":"Q33","v":41},{"$nulls":7},{"$f":"SUM(N30:N32)","v":0},{"$f":"SUM(O30:O32)","v":0},{"$f":"SUM(P30:P32)","v":0},{"$f":"AVERAGE(Q30:Q32)","v":41}]
[]
[null,"AUM2a : Mettre en place et suivre des sites expérimentaux"]
[null,"Tâche","Maître d'ouvrage (MO)","Partenaires techniques","Opérateurs","Etat d'avancement","Début","Fin","Commentaires de la ligne","Action engagé (MAEC ou autre)","Surface engagé (ha)","Montant engagé (€)","Vol d'eau récupéré","Economie d'eau attendue (Mm3)","FC","E² (Mm3)","Progression (%)","Commentaire général"]
[null,"Groupe travail érosion","SMD","Mairie Mazerolles, CA40 , Mont de Marsan Agglo, SMD, IA, Langevin et Associés, FDCUMA640 ?,AEAG, Arbres & Paysages32, Maïsadour, Agriculteurs, propriétaires","IA, CA40, SMD","Engagé","2023-05-01","2028-12-31","4 Sites retenus à l'échelle AEAG, dont 1 sur Midour : BV Larrioucla",{"$nulls":4},0,0,{"$f":"N37*O37","v":0},75,"Projet technique et financier quasi finalisé. "]
[null,"Concertation avec acteurs locaux et préparation dossier subv portage SMD ",null,null,null,"Engagé","2023-06-01",{"$nulls":6},0,0,{"$f":"N38*O38","v":0},40,"Reprise concertation en 2025 avec les acteurs concernés / partenaires."]
[{"$nulls":5},"Non démarré",{"$nulls":7},0,0,{"$f":"N39*O39","v":0},0]
[null,"","",null,null,{"$f":"Q40","v":38.333333333333336},{"$nulls":7},{"$f":"SUM(N37:N39)","v":0},{"$f":"SUM(O37:O39)","v":0},{"$f":"SUM(P37:P39)","v":0},{"$f":"AVERAGE(Q37:Q39)","v":38.333333333333336}]
[]
[null,"AUM2b : Instituer des groupes de travail avec des agriculteurs basés sur les sites expérimentaux"]
[null,"Tâche","Maître d'ouvrage (MO)","Partenaires techniques","Opérateurs","Etat d'avancement","Début","Fin","Commentaires de la ligne","Action engagé (MAEC ou autre)","Surface engagé (ha)","Montant engagé (€)","Vol d'eau récupéré","Economie d'eau attendue (Mm3)","FC","E² (Mm3)","Progression (%)","Commentaire général"]
[null,"Bassin versant de Larrioucla","Animateur technique agricole ","Maïsadour, Vivadour, Bio du Gers, AGROBIO40, FD CUMA 640, ALPAD 40, AFAF, CA40, CA32, etc","IA, CA40, ","Engagé","2023-06-01",null,"Concertation en cours dans le cadre des SFN à Mazerolles ; à répliquer autant de fois que nécessaire.",{"$nulls":4},0,0,{"$f":"N44*O44","v":0},40,"avancées liées à l'action AUM2a"]
[null,"","",null,null,{"$f":"Q45","v":40},{"$nulls":7},{"$f":"SUM(N44:N44)","v":0},{"$f":"SUM(O44:O44)","v":0},{"$f":"SUM(P44:P44)","v":0},{"$f":"AVERAGE(Q44:Q44)","v":40}]
[]
[null,"AUM2c : Développer des réseaux d'agriculteurs sur le bassin du Midour"]
[null,"Tâche","Maître d'ouvrage (MO)","Partenaires techniques","Opérateurs","Etat d'avancement","Début","Fin","Commentaires de la ligne","Action engagé (MAEC ou autre)","Surface engagé (ha)","Montant engagé (€)","Vol d'eau récupéré","Economie d'eau attendue (Mm3)","FC","E² (Mm3)","Progression (%)","Commentaire général"]
[null,null,"Animateur technique agricole","Maïsadour, Vivadour, Bio du Gers, AGROBIO40, FD CUMA 640, ALPAD 40, AFAF, CA40, CA32, etc",null,"Non démarré",{"$nulls":7},0,0,{"$f":"N49*O49","v":0},0]
[{"$nulls":5},"Non démarré",{"$nulls":7},0,0,{"$f":"N50*O50","v":0},0]
[{"$nulls":5},"Non démarré",{"$nulls":7},0,0,{"$f":"N51*O51","v":0},0]
[null,"","",null,null,{"$f":"Q52","v":0},{"$nulls":7},{"$f":"SUM(N49:N51)","v":0},{"$f":"SUM(O49:O51)","v":0},{"$f":"SUM(P49:P51)","v":0},{"$f":"AVERAGE(Q49:CQ5150)","v":0}]
[]
[null,"AUM2d : Instituer des groupes de travail avec les techniciens agricoles"]
[null,"Tâche","Maître d'ouvrage (MO)","Partenaires techniques","Opérateurs","Etat d'avancement","Début","Fin","Commentaires de la ligne","Action engagé (MAEC ou autre)","Surface engagé (ha)","Montant engagé (€)","Vol d'eau récupéré","Economie d'eau attendue (Mm3)","FC","E² (Mm3)","Progression (%)","Commentaire général"]
[null,null,"Animateur technique agricole","Maïsadour, Vivadour, Bio du Gers, AGROBIO40, FD CUMA 640, ALPAD 40, AFAF, CA40, CA32, etc",null,"Non démarré",{"$nulls":7},0,0,{"$f":"N56*O56","v":0},0,"Axe de travail 2025"]
[{"$nulls":5},"Non démarré",{"$nulls":7},0,0,{"$f":"N57*O57","v":0},0]
[{"$nulls":5},"Non démarré",{"$nulls":7},0,0,{"$f":"N58*O58","v":0},0]
[null,"","",null,null,{"$f":"Q59","v":0},{"$nulls":7},{"$f":"SUM(N56:N58)","v":0},{"$f":"SUM(O56:O58)","v":0},{"$f":"SUM(P56:P58)","v":0},{"$f":"AVERAGE(Q56:Q58)","v":0}]
[]
[null,"AUM2e : Instaurer une formation continue avec des interventions d'experts à destination de la profession agricole"]
[null,"Tâche","Maître d'ouvrage (MO)","Partenaires techniques","Opérateurs","Etat d'avancement","Début","Fin","Commentaires de la ligne","Action engagé (MAEC ou autre)","Surface engagé (ha)","Montant engagé (€)","Vol d'eau récupéré","Economie d'eau attendue (Mm3)","FC","E² (Mm3)","Progression (%)","Commentaire général"]
[null,null,"Animateur technique agricole","Maïsadour, Vivadour, Bio du Gers, AGROBIO40, FD CUMA 640, ALPAD 40, AFAF, CA40, CA32, etc",null,"Non démarré",{"$nulls":7},0,0,{"$f":"N63*O63","v":0},0,"des évènements ont été organisés par partenaires agricoles"]
[{"$nulls":5},"Non démarré",{"$nulls":7},0,0,{"$f":"N64*O64","v":0},0]
[{"$nulls":5},"Non démarré",{"$nulls":7},0,0,{"$f":"N65*O65","v":0},0]
[null,"","",null,null,{"$f":"Q66","v":0},{"$nulls":7},{"$f":"SUM(N63:N65)","v":0},{"$f":"SUM(O63:O65)","v":0},{"$f":"SUM(P63:P65)","v":0},{"$f":"AVERAGE(Q63:Q65)","v":0}]
[]
[null,"AUM3a : Mettre en place et suivre des sites expérimentaux"]
[null,"Tâche","Maître d'ouvrage (MO)","Partenaires techniques","Opérateurs","Etat d'avancement","Début","Fin","Commentaires de la ligne","Action engagé (MAEC ou autre)","Surface engagé (ha)","Montant engagé (€)","Vol d'eau récupéré","Economie d'eau attendue (Mm3)","FC","E² (Mm3)","Progression (%)","Commentaire général"]
[null,null,"Maïsadour, Vivadour, CA40, CA32, Bio du Gers, Agrobio40, FD CUMA 640, ALPAD 40, etc.","AFAF, etc.",null,"Engagé",null,null,"en lien avec le projet sur BV de l'Arrioucla (Mazerolles). Pourra être répliqué sur d'autres sites au besoin.",{"$nulls":4},0,0,{"$f":"N70*O70","v":0},20,"Un site (cf. AUM2a) sera à suivre sur plusieurs années si les aménagements se concrétisent sur le BV de l'Arrioucla."]
[{"$nulls":5},"Non démarré",{"$nulls":7},0,0,{"$f":"N71*O71","v":0},0]
[{"$nulls":5},"Non démarré",{"$nulls":7},0,0,{"$f":"N72*O72","v":0},0]
[null,"","",null,null,{"$f":"Q73","v":6.666666666666667},{"$nulls":7},{"$f":"SUM(N70:N72)","v":0},{"$f":"SUM(O70:O72)","v":0},{"$f":"SUM(P70:P72)","v":0},{"$f":"AVERAGE(Q70:Q72)","v":6.666666666666667}]
[]
[null,"AUM3b : Instituer des groupes de travail avec des agriculteurs basés sur les sites expérimentaux"]
[null,"Tâche","Maître d'ouvrage (MO)","Partenaires techniques","Opérateurs","Etat d'avancement","Début","Fin","Commentaires de la ligne","Action engagé (MAEC ou autre)","Surface engagé (ha)","Montant engagé (€)","Vol d'eau récupéré","Economie d'eau attendue (Mm3)","FC","E² (Mm3)","Progression (%)","Commentaire général"]
[null,null,"Animateur technique agricole (IA)","Maïsadour, Vivadour, Bio du Gers, AGROBIO40, FD CUMA 640, ALPAD 40, AFAF, CA40, CA32, etc",null,"Non démarré",{"$nulls":7},0,0,{"$f":"N77*O77","v":0},0]
[{"$nulls":5},"Non démarré",{"$nulls":7},0,0,{"$f":"N78*O78","v":0},0]
[{"$nulls":5},"Non démarré",{"$nulls":7},0,0,{"$f":"N79*O79","v":0},0]
[null,"","",null,null,{"$f":"Q80","v":0},{"$nulls":7},{"$f":"SUM(N77:N79)","v":0},{"$f":"SUM(O77:O79)","v":0},{"$f":"SUM(P77:P79)","v":0},{"$f":"AVERAGE(Q77:Q79)","v":0}]
[]
[null,"AUM4a : Instituer un groupe de travail avec les acteurs du territoire : arbres, haies champêtres, ripisylves"]
[null,"Tâche","Maître d'ouvrage (MO)","Partenaires techniques","Opérateurs","Etat d'avancement","Début","Fin","Commentaires de la ligne","Action engagé (MAEC ou autre)","Surface engagé (ha)","Montant engagé (€)","Vol d'eau récupéré","Economie d'eau attendue (Mm3)","FC","E² (Mm3)","Progression (%)","Commentaire général"]
[null,"Projet \"gestion des paysages\" => Trame Verte 32","AP32, Syndicat Rivière Midour Douze, Syndicat Rivière Midou Douze, EPCI-FP, FDC32 , ","Ensemble des acteurs du territoire","FDC32 ; PETR Pays d'Armagnac","Engagé",null,null,"Démarre mars 2024 : groupe de travail Paysages Midour. Initiative déjà lancée simultanément par partenaires gersois, IA se rattache au COPIL.",{"$nulls":4},0,0,{"$f":"N84*O84","v":0},40,"Démarre mars 2024 : Trame Verte Gers lancée par FDC32 & PETR Pays d'Armagnac sur une grande partie du BV midour gersois."]
[null,"Projet \"gestion des paysages\" => Trame Verte 40","AP32, Syndicat Rivière Midour Douze, Syndicat Rivière Midou Douze, EPCI-FP, FDC32 , ","Ensemble des acteurs du territoire","FDC40 ; IA","Engagé",null,null,"Projet similaire au Trame Verte 32 répliqué sur territoire PTGE Douze et Midour.",{"$nulls":4},0,0,{"$f":"N85*O85","v":0},25,"Trame Verte lancée aout 2024 par FDC40 & IA sur BV Midour et Douze landais. À suivre, avec animations locales."]
[null,"","",null,null,{"$f":"Q86","v":32.5},{"$nulls":7},{"$f":"SUM(N84:N85)","v":0},{"$f":"SUM(O84:O85)","v":0},{"$f":"SUM(P84:P85)","v":0},{"$f":"AVERAGE(Q84:Q85)","v":32.5}]
[]
[null,"AUM4b : Instituer un groupe de travail avec les acteurs du territoire : espaces semi-naturels et milieux humides"]
[null,"Tâche","Maître d'ouvrage (MO)","Partenaires techniques","Opérateurs","Etat d'avancement","Début","Fin","Commentaires de la ligne","Action engagé (MAEC ou autre)","Surface engagé (ha)","Montant engagé (€)","Vol d'eau récupéré","Economie d'eau attendue (Mm3)","FC","E² (Mm3)","Progression (%)","Commentaire général"]
[null,"Projet \"gestion des paysages\"","ADASEA, Syndicat Rivière Midour Douze, Syndicat Rivière Midou Douze","Ensemble des acteurs du territoire",null,"Engagé",null,null,"Démarre mars 2024 : groupe de travail Paysages Midour.",{"$nulls":4},0,0,{"$f":"N90*O90","v":0},20,"Démarre mars 2024 : Trame Verte Gers lancée par FDC32 & PETR Pays d'Armagnac sur une grande partie du BV midour gersois. Trame Verte lancée aout 2024 par FDC40 & IA sur BV Midour et Douze landais. À suivre, avec animations locales. Reboucler avec Life Coteaux Gascons pour suivi des actions réalisées."]
[{"$nulls":5},"Non démarré",{"$nulls":7},0,0,{"$f":"N91*O91","v":0},0]
[{"$nulls":5},"Non démarré",{"$nulls":7},0,0,{"$f":"N92*O92","v":0},0]
[null,"","",null,null,{"$f":"Q93","v":6.666666666666667},{"$nulls":7},{"$f":"SUM(N90:N92)","v":0},{"$f":"SUM(O90:O92)","v":0},{"$f":"SUM(P90:P92)","v":0},{"$f":"AVERAGE(Q90:Q92)","v":6.666666666666667}]
[]
[null,"AUM4c : Aménager le bassin versant des plans d'eau pour limiter l'érosion et leur envasement"]
[null,"Tâche","Maître d'ouvrage (MO)","Partenaires techniques","Opérateurs","Etat d'avancement","Début","Fin","Commentaires de la ligne","Action engagé (MAEC ou autre)","Surface engagé (ha)","Montant engagé (€)","Vol d'eau récupéré","Economie d'eau attendue (Mm3)","FC","E² (Mm3)","Progression (%)","Commentaire général"]
[null,"Projet \"gestion des paysages\"","Collectivités, agriculteurs, syndicats, etc","Acteurs du PTGE et autres acteurs locaux","FDC32/ CAUE/ CD32/ PETR Pays d'Armagnac/ SMD/ SMBVMD, ","Se poursuit","2024-03-01","2024-12-31","Action ultérieure à CMU4",{"$nulls":4},0,0,{"$f":"N97*O97","v":0},33,"Action ultérieure à CMU4"]
[null,"","",null,null,{"$f":"Q98","v":33},{"$nulls":7},{"$f":"SUM(N97:N97)","v":0},{"$f":"SUM(O97:O97)","v":0},{"$f":"SUM(P97:P97)","v":0},{"$f":"AVERAGE(Q97:Q97)","v":33}]

{"sheet":"OGRM_résumé","index":6,"n_rows":9,"n_cols":9,"rows_kept":9,"cut":false,"hidden":false,"merged":[[0,0,0,1],[3,9,6,9]]}
["OGRM - Adaptation des usages aux milieux",{"$nulls":4},{"$f":"'PTGE Midour Synthèse'!C1","v":"le 10/03/2025"}]
[]
["Code","Tâche","Actions à réaliser au préalable","Actions qui en dépendent ou en lien","Etat d'avancement","Progression","E² (Mm3)","Objectif PTGE 2035","Commentaires"]
["OGRM-1","Améliorer la gestion et l'utilisation des ressources et des milieux",null,"CMU4, MRC2d",{"$f":"AVERAGE(OGRM!F6,OGRM!F12,OGRM!F18,OGRM!F24)","v":30.75},{"$f":"AVERAGE(OGRM!P6,OGRM!P12,OGRM!P18,OGRM!P24)","v":30.75},{"$f":"SUM(OGRM!O6,OGRM!O12,OGRM!O18,OGRM!O24)","v":0},null,"Landes (40) :  205 plans d’eau sur le territoire ; Situation réglementaire des plans d’eau régularisée (sauf cas particuliers)\nGers (32) : à préciser."]
["OGRM-2","Optimiser la gestion des réservoirs de soutien d'étiage",null,null,{"$f":"AVERAGE(OGRM!F30,OGRM!F36,OGRM!F42,OGRM!F49)","v":86.25},{"$f":"AVERAGE(OGRM!P30,OGRM!P36,OGRM!P42,OGRM!P49)","v":86.25},{"$f":"SUM(OGRM!O30,OGRM!O36,OGRM!O42,OGRM!O49)","v":0},null,"un groupe de travail a démarré, le travail doit se poursuivre en 2025, selon les disponibilités des participants au groupe."]
["OGRM-3","Economiser l'eau en irrigation agricole",null,null,{"$f":"AVERAGE(OGRM!F55,OGRM!F61,OGRM!F67,OGRM!F73)","v":40},{"$f":"AVERAGE(OGRM!P55,OGRM!P61,OGRM!P67,OGRM!P73)","v":40},{"$f":"SUM(OGRM!O55,OGRM!O61,OGRM!O67,OGRM!O73)","v":0.47799999999999998},"3 Mm³ / 9 000 ha avec SHE et OAD\n1 000 ha de GG","Plusieurs actions en cours."]
["OGRM-4","Améliorer la qualité des rejets anthropiques","CMU1",null,{"$f":"AVERAGE(OGRM!F79,OGRM!F86,OGRM!F93)","v":3.3333333333333335},{"$f":"AVERAGE(OGRM!P79,OGRM!P86,OGRM!P93)","v":3.3333333333333335},{"$f":"SUM(OGRM!O79,OGRM!O86,OGRM!O93)","v":0},"Adaptation du plan de crise au maximum 1 an après  la publication finale de l’étude prévue en CMU1","Considéré comme prioritaire dans le rapport PTGE. Difficultés de mise en place effective."]
["OGRM-5","Restaurer le fonctionnement des cours d'eau et les habitats associés",null,"CMU5",{"$f":"AVERAGE(OGRM!F117,OGRM!F111,OGRM!F105,OGRM!F99)","v":49.75},{"$f":"AVERAGE(OGRM!P117,OGRM!P111,OGRM!P105,OGRM!P99)","v":49.75},{"$f":"SUM(OGRM!O117,OGRM!O111,OGRM!O105,OGRM!O99)","v":0},null,"Echanges réguliers avec syndicats de rivière, des actions en cours."]
[null,null,null,"Avancement moyen OGRM",{"$f":"AVERAGE(E4:E8)","v":42.016666666666666},{"$f":"AVERAGE(F4:F8)","v":42.016666666666666},{"$f":"SUM(G4:G8)","v":0.47799999999999998}]

{"sheet":"OGRM","index":7,"n_rows":117,"n_cols":22,"rows_kept":117,"cut":false,"hidden":false,"merged":[[3,16,5,16],[9,16,11,16],[133,5,133,7],[111,2,111,15],[118,2,118,6],[42,5,42,7],[93,12,93,13],[126,5,126,6],[128,2,128,6],[129,12,129,13],[131,5,131,7],[132,5,132,7],[154,5,154,7],[156,5,156,7],[160,2,160,6],[167,2,167,15],[134,5,134,7],[138,2,138,6],[145,2,145,15],[149,5,149,6],[151,2,151,6],[152,12,152,14]]}
[null,"Optimisation de la gestion des ressources et des milieux",{"$nulls":4},{"$f":"'PTGE Midour Synthèse'!C1","v":"le 10/03/2025"}]
[null,"OGRM-1a : Poursuivre la mise en conformité des retenues individuelles"]
[null,"Tâche","Maître d'ouvrage (MO)","Partenaires techniques","Opérateurs","Etat d'avancement","Début","Fin","Commentaires de la ligne","Action engagé (MAEC ou autre)","Surface engagé (ha)","Vol d'eau récupéré","Economie d'eau attendue (Mm3)","FC","E² (Mm3)","Progression (%)","Commentaire général",null,null,"#DBDBDB","Non démarré","Action non initiée / qui découle de l'avancement d'une préalable pour être démarrée"]
[null,"Mise en conformité plans d'eau","DDTM40, DDT32, VIVADOUR","IA, CACG","DDT(M)","Bien avancé","2022-01-01","2028-12-31","Les dossiers restants sont des dossiers complexes. Les autres sont mis en conformité.",null,null,null,0,1,{"$f":"M4*N4","v":0},90,"Landes (40) :  205 plans d’eau sur le territoire ; Situation réglementaire des plans d’eau régularisée (sauf cas particuliers)\nGers (32) : à préciser",null,null,"#FFCCFF","Engagé","En cours, dans les étapes préliminaires"]
[{"$nulls":19},"#CC66FF","Bien avancé","En cours, plutôt dans les dernières étapes"]
[null,"","",null,null,{"$f":"P6","v":90},null,null,"",null,null,null,{"$f":"SUM(M4:M5)","v":0},{"$f":"SUM(N4:N5)","v":1},{"$f":"SUM(O4:O5)","v":0},{"$f":"AVERAGE(P4:P5)","v":90},null,null,null,"#A9D08E","Terminée","Pour les actions ponctuelles avec une date de fin"]
[{"$nulls":19},"#A9D08E","Se poursuit","Action qui a vocation à durer dans le temps  / Sans date de fin"]
[null,"OGRM-1b : Travailler à la valorisation des retenues sans usage"]
[null,"Tâche","Maître d'ouvrage (MO)","Partenaires techniques","Opérateurs","Etat d'avancement","Début","Fin","Commentaires de la ligne","Action engagé (MAEC ou autre)","Surface engagé (ha)","Vol d'eau récupéré","Economie d'eau attendue (Mm3)","FC","E² (Mm3)","Progression (%)","Commentaire général"]
[null,null,"Services Etat, Irrigadour, CA, Vivadour, IA","IA, CACG",null,"Engagé","2023-07-01","2026-07-15",{"$nulls":4},0,0,{"$f":"M10*N10","v":0},33,"un groupe de travail a démarré, le travail doit se poursuivre en 2025, selon les disponibilités des participants au groupe."]
[]
[null,"","",null,null,{"$f":"P12","v":33},null,null,"",null,null,null,{"$f":"SUM(M10:M11)","v":0},{"$f":"SUM(N10:N11)","v":0},{"$f":"SUM(O10:O11)","v":0},{"$f":"AVERAGE(P10:P11)","v":33}]
[]
[null,"OGRM-1c : Reconquérir la capacité de stockage des plans d'eau"]
[null,"Tâche","Maître d'ouvrage (MO)","Partenaires techniques","Opérateurs","Etat d'avancement","Début","Fin","Commentaires de la ligne","Action engagé (MAEC ou autre)","Surface engagé (ha)","Vol d'eau récupéré","Economie d'eau attendue (Mm3)","FC","E² (Mm3)","Progression (%)","Commentaire général"]
[null,"étude des retenues ","ASA du frêche Saint-Vidou, IA","CA32, CA40, Vivadour",null,"Non démarré",null,null,"Pas de besoins (bathy faite) sur les ouvrages IA. Ouvrages privés ?",null,null,null,0,0,{"$f":"M16*N16","v":0},0,"prestations bathymétrie par partenaires : nb de plans d'eau sondés ?"]
[null,"volume de stockage remobilisé",null,null,null,"Non démarré"]
[null,"","",null,null,{"$f":"P18","v":0},{"$nulls":6},{"$f":"SUM(M16:M17)","v":0},{"$f":"SUM(N16:N17)","v":0},{"$f":"SUM(O16:O17)","v":0},{"$f":"AVERAGE(P16:P17)","v":0}]
[]
[null,"OGRM-1d : Intégrer les prélèvements en nappes influençant les cours d'eau dans la gestion"]
[null,"Tâche","Maître d'ouvrage (MO)","Partenaires techniques","Opérateurs","Etat d'avancement","Début","Fin","Commentaires de la ligne","Action engagé (MAEC ou autre)","Surface engagé (ha)","Vol d'eau récupéré","Economie d'eau attendue (Mm3)","FC","E² (Mm3)","Progression (%)","Commentaire général"]
[null,null,"DDTM40 ","IA, CA40, Irrigadour",null,"Non démarré",null,null,"Action CMU1 préalable",null,null,null,0,0,{"$f":"M22*N22","v":0},0,"Adaptation du plan de crise au maximum 1 an après  la publication finale de l’étude prévue en CMU1. "]
[]
[null,"","",null,null,{"$f":"P24","v":0},{"$nulls":6},{"$f":"SUM(M22:M23)","v":0},{"$f":"SUM(N22:N23)","v":0},{"$f":"SUM(O22:O23)","v":0},{"$f":"AVERAGE(P22:P23)","v":0}]
[]
[null,"OGRM-2a : Systématiser la transmission d'informations entre irrigants et gestionnaire"]
[null,"Tâche","Maître d'ouvrage (MO)","Partenaires techniques","Opérateurs","Etat d'avancement","Début","Fin","Commentaires de la ligne","Action engagé (MAEC ou autre)","Surface engagé (ha)","Vol d'eau récupéré","Economie d'eau attendue (Mm3)","FC","E² (Mm3)","Progression (%)","Commentaire général"]
[null,"déclaration des prélèvements par anticipation : SMS","IA","CACG, Irrigadour, CA40, CA32",null,"Se poursuit",null,null,"après CMU5 ; OGRM2b",null,null,null,0,0,{"$f":"M28*N28","v":0},75,"SMS irrigants : poursuivre efforts de sensibilisation pour meilleure anticipation de la gestion de la ressource par le gestionnaire.\nCampagne de demande de besoins Irrigadour renouvelée chaque année : taux de retour proche 80%. Quel traitement des données est fait ? "]
[null,"déclaration des prélèvements par anticipation : application \"intention d'irriguer\"","IA","Rives&Eaux du Sud-Ouest (CACG)",null,"Engagé",{"$nulls":10},"application développée en 2021-22 sur les sous-bassins Bahus et Midour, dans le cadre de l'appel à projets \"Economies d'eau en agriculture\" proposé par l'agence de l'eau Adour-Garonne ; déploiement généralisé sur tous les axes réalimentés depuis 2024"]
[null,"","",null,null,{"$f":"P30","v":75},{"$nulls":6},{"$f":"SUM(M28:M29)","v":0},{"$f":"SUM(N28:N29)","v":0},{"$f":"SUM(O28:O29)","v":0},{"$f":"AVERAGE(P28:P29)","v":75}]
[]
[null,"OGRM-2b : Equiper les irrigants en cours d'eau avec des compteurs communicants"]
[null,"Tâche","Maître d'ouvrage (MO)","Partenaires techniques","Opérateurs","Etat d'avancement","Début","Fin","Commentaires de la ligne","Action engagé (MAEC ou autre)","Surface engagé (ha)","Vol d'eau récupéré","Economie d'eau attendue (Mm3)","FC","E² (Mm3)","Progression (%)","Commentaire général"]
[null,"Proposition / information sur les compteurs aux irrigants","IA","OU, CACG-TSE, DDT32, DDTM40",null,"Terminée","2020-01-01","2022-12-31","après CMU5 ; OGRM2a",null,null,null,0,0,{"$f":"M34*N34","v":0},90," Points de prélèvements les plus importants équipés en 2024, la plupart des autres équipés en 2025 et les tout derniers en 2026."]
[null,"Commande d'équipements",null,null,null,"Engagé","2023-01-01","2028-12-31",{"$nulls":7},50]
[null,"","",null,null,{"$f":"P36","v":70},{"$nulls":6},{"$f":"SUM(M34:M35)","v":0},{"$f":"SUM(N34:N35)","v":0},{"$f":"SUM(O34:O35)","v":0},{"$f":"AVERAGE(P34:P35)","v":70}]
[]
[null,"OGRM-2c : Mettre en œuvre des doubles valeurs de débits consignes aux stations de gestion"]
[null,"Tâche","Maître d'ouvrage (MO)","Partenaires techniques","Opérateurs","Etat d'avancement","Début","Fin","Commentaires de la ligne","Action engagé (MAEC ou autre)","Surface engagé (ha)","Vol d'eau récupéré","Economie d'eau attendue (Mm3)","FC","E² (Mm3)","Progression (%)","Commentaire général"]
[null,"Mise en place effective","IA","DDT32, DDTM40, CACG",null,"Terminée",null,null,"ACI 7 aout 2023",null,null,null,0,0,{"$f":"M40*N40","v":0},100,"ACI (arrete cadre interdépartemental) n° 2023-1039 du 7 aout 2023 intègre les modalités de cette souplesse de gestion en introduisant 4 valeurs à chaque point objectif de gestion"]
[]
[null,"","",null,null,{"$f":"P42","v":100},{"$nulls":6},{"$f":"SUM(M40:M41)","v":0},{"$f":"SUM(N40:N41)","v":0},{"$f":"SUM(O40:O41)","v":0},{"$f":"AVERAGE(P40:P41)","v":100}]
[]
[null,"OGRM-2d : Continuer et valoriser la gestion anticipée des tours d'eau sur le territoire"]
[null,"Tâche","Maître d'ouvrage (MO)","Partenaires techniques","Opérateurs","Etat d'avancement","Début","Fin","Commentaires de la ligne","Action engagé (MAEC ou autre)","Surface engagé (ha)","Vol d'eau récupéré","Economie d'eau attendue (Mm3)","FC","E² (Mm3)","Progression (%)","Commentaire général"]
[null,"Intégrer ce type de gestion aux arrétés interpréfectoraux","IA","DDT32, DDTM40, Irrigadour, ensemble des membres préleveurs",null,"Terminée","2022-01-01","2022-12-31","après CMU5 ; OGRM2a ; OGRM2b",null,null,null,0,0,{"$f":"M46*N46","v":0},100,"Les réunions de commission de gestion se poursuivent avant la campagne d'irrigation et pendant la campagne, avec les responsables de secteur à fréquence une à deux fois par semaine et /ou selon les besoins en cours."]
[null,"Fréquence d'application de tours d'eau/respect des valeurs consignes",null,null,null,"Se poursuit","2023-01-01","2028-12-31",{"$nulls":7},100,"de 2019 à 2023 gestion conforme aux seuils de l’arrêté en vigueur.\n2024 : Bilan en cours."]
[null,"Nombre de jours de défaillance",null,null,null,"Se poursuit","2023-01-01","2028-12-31",{"$nulls":7},100,"sur la période de réalimentation :\n2019 : Midour aval (Arthez) 0 jour/ Midour aval (Charros) : 5 j / Midour amont (Bourgès, Maribot, Lapeyrie) 16 j (conforme aux seuils de l’arrêté en vigueur en nombre de jours consécutifs)\n2020 : Midour aval (Arthez) 0 jour/ Midour aval (Charros) : 3 j / Midour amont (Bourgès, Maribot, Lapeyrie) 3 j (conforme aux seuils de l’arrêté en vigueur en nombre de jours consécutifs)\n2021 : Midour aval (Arthez) 0 jour/ Midour aval (Charros) : 0 j / Midour amont (Bourgès, Maribot, Lapeyrie) 16 j (conforme aux seuils de l’arrêté en vigueur en nombre de jours consécutifs)\n2022 :  Midour aval (Arthez) 3 jours/ Midour aval (Charros) : 14 j / Midour amont (Bourgès, Maribot, Lapeyrie) 14 j  (conforme aux seuils de l’arrêté en vigueur en nombre de jours consécutifs)\n2023 ; Midour aval (Arthez) 0 jour/ Midour aval (Charros) : 0 j / Midour amont (Bourgès, Maribot, Lapeyrie) 6 j (conforme aux seuils de l’arrêté en vigueur en nombre de jours consécutifs)"]
[null,"","",null,null,{"$f":"P49","v":100},{"$nulls":6},{"$f":"SUM(M46:M48)","v":0},{"$f":"SUM(N46:N48)","v":0},{"$f":"SUM(O46:O48)","v":0},{"$f":"AVERAGE(P46:P48)","v":100}]
[]
[null,"OGRM-3a : Mettre en place et suivre des sites expérimentaux"]
[null,"Tâche","Maître d'ouvrage (MO)","Partenaires techniques","Opérateurs","Etat d'avancement","Début","Fin","Commentaires de la ligne","Action engagé (MAEC ou autre)","Surface engagé (ha)","Vol d'eau récupéré","Economie d'eau attendue (Mm3)","FC","E² (Mm3)","Progression (%)","Commentaire général"]
[null,null,"IRRIGADOUR, CA40, CA32, Vivadour, Maïsadour, exploitations agricoles, autres acteurs agricoles",null,null,"Non démarré",null,null,"difficultés de financement de l'équipement",null,null,null,0,0,{"$f":"M53*N53","v":0},0]
[]
[null,"","",null,null,{"$f":"P55","v":0},{"$nulls":6},{"$f":"SUM(M53:M54)","v":0},{"$f":"SUM(N53:N54)","v":0},{"$f":"SUM(O53:O54)","v":0},{"$f":"AVERAGE(P53:P54)","v":0}]
[]
[null,"OGRM-3b : Instituer des groupes de travail et des formations avec des agriculteurs"]
[null,"Tâche","Maître d'ouvrage (MO)","Partenaires techniques","Opérateurs","Etat d'avancement","Début","Fin","Commentaires de la ligne","Action engagé (MAEC ou autre)","Surface engagé (ha)","Vol d'eau récupéré","Economie d'eau attendue (Mm3)","FC","E² (Mm3)","Progression (%)","Commentaire général"]
[null,"Constituer des groupes de travail","Animateur technique agricole","Maïsadour, Vivadour, CA40, CA32, Bio du Gers, AGROBIO40, FD CUMA 640, ALPAD 40, AFAF, Irrigadour",null,"Non démarré",null,null,"après OGRM3a",null,null,null,0,0,{"$f":"M59*N59","v":0},0,"Des actions réalisées par les partenaires agricoles"]
[null,"Agriculteurs engagés",null,null,null,"Non démarré",{"$nulls":9},20,"Des contacts pris pour formation OAD / pilotage irrigation"]
[null,"","",null,null,{"$f":"P61","v":10},{"$nulls":6},{"$f":"SUM(M59:M60)","v":0},{"$f":"SUM(N59:N60)","v":0},{"$f":"SUM(O59:O60)","v":0},{"$f":"AVERAGE(P59:P60)","v":10}]
[]
[null,"OGRM-3c : Acquisition de systèmes de gestion et d'outils d'aide à la décision en irrigation"]
[null,"Tâche","Maître d'ouvrage (MO)","Partenaires techniques","Opérateurs","Etat d'avancement","Début","Fin","Commentaires de la ligne","Action engagé (MAEC ou autre)","Surface engagé (ha)","Vol d'eau récupéré","Economie d'eau attendue (Mm3)","FC","E² (Mm3)","Progression (%)","Commentaire général"]
[null,"Project GG (AAP EEE Economie et etfficience de l'eau)","CA 40 ","Vivadour, Maïsadour, CA32, CA40, etc","CA40","Bien avancé","2023-11-01","2026-07-31","fin du projet en  2026. l'état des lieux précise que 5000ha irrigués enquétes (1/4 des EA du BV) ont déjà des pratiques vertueuses relatant des économies d'eau à hauteur de 442000 m3",null,null,442000,0.442,1,{"$f":"M65*N65","v":0.442},75,"selon les AAP en cours, difficultés de financement du matériel\n2022: 1 exploitation\n2023: 2 exploitations + AAP écod'eau GAG\n1 recrutement (CA40)\n2024 : 77 EA enquêtées représentant 5000 ha irrigués ; 7 projets déposés pour 124 ha en GàG (40ha en GC / 8ha vignes / 72 ha noisettes / 4 ha Maraichage)\n\nD'après le travail d'enquête auprès des agriculteurs du MIdour de la CA40 dans le cadre de l'AAP Economie et efficience de l'eau\"*, 18 % des exploitations enquêtées ne possèdent ni matériels d’irrigation, ni OAD, ni\nsystème de télégestion. 51 % ont au moins un matériel d’irrigation hydro-économe, 3 %\nont seulement un OAD pour le pilotage de l’irrigation, 18 % combinent au moins un matériel d’irrigation hydro-économe avec un OAD, 6 % combinent au moins un matériel d’irrigation hydro-économe avec un système de télégestion et 4 % combinent au moins un matériel d’irrigation hydro-économe avec un OAD et un système de télégestion. Cela représente, 21 % des surfaces irriguées sans matériels hydro-économe, ni OAD, ni\nsystème de télégestion.\n29 agriculteurs enquêtés, soit 38 %, sont intéressés par l’acquisition de matériel hydroéconome et/ou OAD et/ou système de télégestion.\nLe bilan provisoir de l'enquête indique un total d'économie de 442 000M3, soit 8% du volume moyen utilise grâce au matériel d'irrigation actuel.\n\n* Cette enquête a été réalisée auprès de 77 exploitations, soit 25% des agriculteurs irriguants du Midour pour 5 000 ha irrigués soit 1/3 des surfaces irriguées autorisées sur le BV Midour L'enquête se poursuit à ce jour"]
[]
[null,"","",null,null,{"$f":"P67","v":75},{"$nulls":6},{"$f":"SUM(M65:M66)","v":0.442},{"$f":"SUM(N65:N66)","v":1},{"$f":"SUM(O65:O66)","v":0.442},{"$f":"AVERAGE(P65:P66)","v":75}]
[]
[null,"OGRM-3d : Acquisition de matériels d'irrigation hydro-performants"]
[null,"Tâche","Maître d'ouvrage (MO)","Partenaires techniques","Opérateurs","Etat d'avancement","Début","Fin","Commentaires de la ligne","Action engagé (MAEC ou autre)","Surface engagé (ha)","Vol d'eau récupéré","Economie d'eau attendue (Mm3)","FC","E² (Mm3)","Progression (%)","Commentaire général"]
[null,"Project GG (AAP EEE)","CA 40","Vivadour, Maïsadour, CA32, CA40, Irrigadour etc","CA40, ","Bien avancé","2023-11-01","2026-07-31","L'AAP Economie et efficience de l'eau de la CA 40 est toujours en cours",null,124,null,3.5999999999999997E-2,1,{"$f":"M71*N71","v":3.5999999999999997E-2},75,"selon les AAP en cours, difficultés de financement du matériel\n2022: 1 exploitation\n2023: 2 exploitations + AAP écod'eau GAG\n1 recrutement (CA40)\n2024 : 77 EA enquêtées représentant 5000 ha irrigués ; 7 projets déposés pour 124 ha en GàG (40ha en GC / 8ha vignes / 72 ha noisettes / 4 ha Maraichage)\n\nD'après le travail d'enquête auprès des agriculteurs du MIdour de la CA40 dans le cadre de l'AAP Economie et efficience de l'eau\"*, 18 % des exploitations enquêtées ne possèdent ni matériels d’irrigation, ni OAD, ni\nsystème de télégestion. 51 % ont au moins un matériel d’irrigation hydro-économe, 3 %\nont seulement un OAD pour le pilotage de l’irrigation, 18 % combinent au moins un matériel d’irrigation hydro-économe avec un OAD, 6 % combinent au moins un matériel d’irrigation hydro-économe avec un système de télégestion et 4 % combinent au moins un matériel d’irrigation hydro-économe avec un OAD et un système de télégestion. Cela représente, 21 % des surfaces irriguées sans matériels hydro-économe, ni OAD, ni\nsystème de télégestion.\n29 agriculteurs enquêtés, soit 38 %, sont intéressés par l’acquisition de matériel hydroéconome et/ou OAD et/ou système de télégestion.\nLe bilan provisoir de l'enquête indique un total d'économie de 442 000M3, soit 8% du volume moyen utilise grâce au matériel d'irrigation actuel.\n *Cette enquête a été réalisée auprès de 77 exploitations, soit 25% des agriculteurs irriguants du Midour pour 5 000 ha irrigués soit 1/3 des surfaces irriguées autorisées sur le BV Midour L'enquête se poursuit à ce jour"]
[]
[null,"","",null,null,{"$f":"P73","v":75},{"$nulls":6},{"$f":"SUM(M71:M72)","v":3.5999999999999997E-2},{"$f":"SUM(N71:N72)","v":1},{"$f":"SUM(O71:O72)","v":3.5999999999999997E-2},{"$f":"AVERAGE(P71:P72)","v":75}]
[]
[null,"OGRM-4a : Réaliser des chantiers collectifs pour la mise aux normes de l'ANC"]
[null,"Tâche","Maître d'ouvrage (MO)","Partenaires techniques","Opérateurs","Etat d'avancement","Début","Fin","Commentaires de la ligne","Action engagé (MAEC ou autre)","Surface engagé (ha)","Vol d'eau récupéré","Economie d'eau attendue (Mm3)","FC","E² (Mm3)","Progression (%)","Commentaire général"]
[null,"Systèmes ANC remplacés","Collectivités (SPANC notamment)",null,null,"Engagé",{"$nulls":6},0,0,{"$f":"M77*N77","v":0},10,"Considéré comme prioritaire dans le rapport PTGE ⇒ dans les 5 premières années de mise en œuvre\nCourrier préparé, envoi à faire."]
[]
[null,"","",null,null,{"$f":"P79","v":10},{"$nulls":6},{"$f":"SUM(M77:M78)","v":0},{"$f":"SUM(N77:N78)","v":0},{"$f":"SUM(O77:O78)","v":0},{"$f":"AVERAGE(P77:P78)","v":10}]
[]
[null,"OGRM-4b : Créer des milieux humides à vocation épuratoire en sortie de station de traitements des eaux usées"]
[null,"Tâche","Maître d'ouvrage (MO)","Partenaires techniques","Opérateurs","Etat d'avancement","Début","Fin","Commentaires de la ligne","Action engagé (MAEC ou autre)","Surface engagé (ha)","Vol d'eau récupéré","Economie d'eau attendue (Mm3)","FC","E² (Mm3)","Progression (%)","Commentaire général"]
[null,"Identifier des sites, rencontrer les propriétaires","Collectivités gestionnaires de STEU","AP32, ADASEA, Syndicat de rivières Midou Douze, Syndicat de rivières Midour Douze …",null,"Engagé",{"$nulls":6},0,0,{"$f":"M83*N83","v":0},0]
[null,"Aménagements réalisés",null,null,null,"Non démarré"]
[null,"évolution qualité de l'eau en aval",null,null,null,"Non démarré"]
[null,"","",null,null,{"$f":"P86","v":0},{"$nulls":6},{"$f":"SUM(M83:M85)","v":0},{"$f":"SUM(N83:N85)","v":0},{"$f":"SUM(O83:O85)","v":0},{"$f":"AVERAGE(P83:P85)","v":0}]
[]
[null,"OGRM-4c : Créer des zones tampons en sortie de réseaux de drainage agricole"]
[null,"Tâche","Maître d'ouvrage (MO)","Partenaires techniques","Opérateurs","Etat d'avancement","Début","Fin","Commentaires de la ligne","Action engagé (MAEC ou autre)","Surface engagé (ha)","Vol d'eau récupéré","Economie d'eau attendue (Mm3)","FC","E² (Mm3)","Progression (%)","Commentaire général"]
[null,"Identifier des sites, rencontrer les propriétaires","Agriculteurs","AP32, ADASEA, Syndicat de rivières Midou Douze, Syndicat de rivières Midour Douze, organismes agricoles, CA32, CA40, DDTM40, DDT32",null,"Engagé",null,null,"à vérifier avec Syndicats rivière",null,null,null,0,0,{"$f":"M90*N90","v":0},0]
[null,"Aménagements réalisés",null,null,null,"Non démarré"]
[null,"Evolution qualité de l'eau en aval",null,null,null,"Non démarré"]
[null,"","",null,null,{"$f":"P93","v":0},{"$nulls":6},{"$f":"SUM(M90:M92)","v":0},{"$f":"SUM(N90:N92)","v":0},{"$f":"SUM(O90:O92)","v":0},{"$f":"AVERAGE(P90:P92)","v":0}]
[]
[null,"OGRM-5a : Affiner les zones à prioriser et les actions à réaliser"]
[null,"Tâche","Maître d'ouvrage (MO)","Partenaires techniques","Opérateurs","Etat d'avancement","Début","Fin","Commentaires de la ligne","Action engagé (MAEC ou autre)","Surface engagé (ha)","Vol d'eau récupéré","Economie d'eau attendue (Mm3)","FC","E² (Mm3)","Progression (%)","Commentaire général"]
[null,"PPG SMBVMD","Riverains, Syndicat de rivières Midou Douze, Syndicat de rivières Midour Douze","BE, AEAG, CD, DDT32, DDTM40, OFB, fédérations de pêche, CA32, CA40, etc",null,"Se poursuit","2024-03-01","2024-12-31","lié aux PPG des syndicats rivière",null,null,null,0,0,{"$f":"M97*N97","v":0},66,"Cf. Syndicats Rivière"]
[null,"PPG SMD",null,null,null,"Se poursuit","2024-03-01","2024-12-31","lié aux PPG des syndicats rivière",{"$nulls":6},66]
[null,"","",null,null,{"$f":"P99","v":66},{"$nulls":6},{"$f":"SUM(M97:M98)","v":0},{"$f":"SUM(N97:N98)","v":0},{"$f":"SUM(O97:O98)","v":0},{"$f":"AVERAGE(P97:P98)","v":66}]
[]
[null,"OGRM-5b : Mettre en place des zones pilotes sur le territoire"]
[null,"Tâche","Maître d'ouvrage (MO)","Partenaires techniques","Opérateurs","Etat d'avancement","Début","Fin","Commentaires de la ligne","Action engagé (MAEC ou autre)","Surface engagé (ha)","Vol d'eau récupéré","Economie d'eau attendue (Mm3)","FC","E² (Mm3)","Progression (%)","Commentaire général"]
[null,"Projet SFN sous BV Larrioucla Mazerolles","Syndicat de rivières Midou Douze, Syndicat de rivières Midour Douze","BE, AEAG, CD, DDT32, DDTM40, OFB, fédérations de pêche, CA32, CA40, etc",null,"Bien avancé","2024-03-01","2024-12-31","lié aux PPG des syndicats rivière\nPremiers projets pilotes prévus pour 2023 ???",null,null,null,0,0,{"$f":"M103*N103","v":0},50,"Concertation en cours entre Agglo/AEAG/Commune Mazerolles/agriculteurs concernés/Synd Riv SMD/ CA40 / Maïsadour / Langevin et Associés"]
[]
[null,"","",null,null,{"$f":"P105","v":50},{"$nulls":6},{"$f":"SUM(M103:M104)","v":0},{"$f":"SUM(N103:N104)","v":0},{"$f":"SUM(O103:O104)","v":0},{"$f":"AVERAGE(P103:P104)","v":50}]
[]
[null,"OGRM-5c : Définir les techniques et les outils adaptés pour une restauration à plus grande échelle"]
[null,"Tâche","Maître d'ouvrage (MO)","Partenaires techniques","Opérateurs","Etat d'avancement","Début","Fin","Commentaires de la ligne","Action engagé (MAEC ou autre)","Surface engagé (ha)","Vol d'eau récupéré","Economie d'eau attendue (Mm3)","FC","E² (Mm3)","Progression (%)","Commentaire général"]
[null,null,"IA et/ou Syndicat de rivières Midou Douze, Syndicat de rivières Midour Douze","BE, AEAG, CD, DDT32, DDTM40, OFB, fédérations de pêche, CA32, CA40, etc",null,"Engagé","2024-03-01","2024-12-31","lié aux PPG des syndicats rivière - démarche en cours de lancement pour début mars 2024 avec Synd. Riv + PETR + AP32 + FDC32",null,null,null,0,0,{"$f":"M109*N109","v":0},33,"Echanges réguliers avec syndicats de rivière"]
[]
[null,"","",null,null,{"$f":"P111","v":33},{"$nulls":6},{"$f":"SUM(M109:M110)","v":0},{"$f":"SUM(N109:N110)","v":0},{"$f":"SUM(O109:O110)","v":0},{"$f":"AVERAGE(P109:P110)","v":33}]
[]
[null,"OGRM-5d : Travailler à l'effacement des seuils de pompage en rivière"]
[null,"Tâche","Maître d'ouvrage (MO)","Partenaires techniques","Opérateurs","Etat d'avancement","Début","Fin","Commentaires de la ligne","Action engagé (MAEC ou autre)","Surface engagé (ha)","Vol d'eau récupéré","Economie d'eau attendue (Mm3)","FC","E² (Mm3)","Progression (%)","Commentaire général"]
[null,"Recensement des seuils","IA, Syndicat de rivières Midou Douze, Syndicat de rivières Midour Douze\nTravaux : propriétaires de seuils et SIAG Ludon/gaube, ASA","DDT32, DDTM40, OFB, Fédérations de pêches, AAPMA, CA32, CA40, AEAG, CD",null,"Bien avancé","2024-03-01","2024-12-31","lié aux PPG des syndicats rivière\n2023-2026 : mise en œuvre de manière coordonnée",null,null,null,0,0,{"$f":"M115*N115","v":0},75,"Se poursuit au travers des actions portées  par les syndicats. Seuils recensés, cartographiés dans le Gers. Seuils recensés mais non cartographiés dans les Landes."]
[null,"Effacement/amenagement lorsque pertinent",null,null,null,"Engagé","2024-03-01","2028-12-31",{"$nulls":7},25,"à l'opportunité, selon les besoins, la nature des seuils (rustique ou soumis à autorisation tel que pour une pisciculture)."]
[null,"","",null,null,{"$f":"P117","v":50},{"$nulls":6},{"$f":"SUM(M115:M116)","v":0},{"$f":"SUM(N115:N116)","v":0},{"$f":"SUM(O115:O116)","v":0},{"$f":"AVERAGE(P115:P116)","v":50}]

{"sheet":"MRC_résumé","index":8,"n_rows":6,"n_cols":9,"rows_kept":6,"cut":false,"hidden":false,"merged":[[0,0,0,1],[3,9,4,9]]}
["MRC - Mobilisation de ressources complémentaires",{"$nulls":4},{"$f":"'PTGE Midour Synthèse'!C1","v":"le 10/03/2025"}]
[]
["Code","Tâche","Actions à réaliser au préalable","Actions qui en dépendent ou en lien","Etat d'avancement","Progression","E² (Mm3)","Objectif PTGE 2035","Commentaires"]
["MRC-1","Utiliser et réutiliser durablement la ressource en eau",null,"CMU4, MRC2d",{"$f":"AVERAGE(MRC!F7,MRC!F13)","v":20.75},{"$f":"AVERAGE(MRC!P7,MRC!P13)","v":20.75},{"$f":"SUM(MRC!O7,MRC!O13)","v":0},"2,15 Mm³\n(substitution)","Mise en place sur un temps long des actions. Se poursuit"]
["MRC-2","Gérer le déficit en eau restant en privilégiant l'optimisation des RSE existants",null,null,{"$f":"AVERAGE(MRC!F19,MRC!F25,MRC!F31,MRC!F37,MRC!F43)","v":23.2},{"$f":"AVERAGE(MRC!P19,MRC!P25,MRC!P31,MRC!P37,MRC!P43)","v":23.2},{"$f":"SUM(MRC!O19,MRC!O25,MRC!O31,MRC!O37,MRC!O43)","v":0},"3,2 Mm3 (2,1 Mm3 phc + 0,45 cscrh + 0,65 Mm3 rosm)","Mise en place sur un temps long des actions. Se poursuit"]
[null,null,null,"Avancement moyen MRC",{"$f":"AVERAGE(E4:E5)","v":21.975000000000001},{"$f":"AVERAGE(F4:F5)","v":21.975000000000001},{"$f":"SUM(G4:G5)","v":0}]

{"sheet":"MRC","index":9,"n_rows":43,"n_cols":22,"rows_kept":43,"cut":false,"hidden":false,"merged":[[64,2,64,6],[31,5,31,7],[44,2,44,6],[52,5,52,6],[54,2,54,6],[55,12,55,13],[57,5,57,7],[58,5,58,7],[59,5,59,7],[60,5,60,7],[86,2,86,6],[93,2,93,15],[71,2,71,15],[75,5,75,6],[77,2,77,6],[78,12,78,14],[80,5,80,7],[82,5,82,7]]}
[null,"Mobilisation de ressources complémentaires",null,null,null,{"$f":"'PTGE Midour Synthèse'!C1","v":"le 10/03/2025"}]
[null,"MRC-1a : Valoriser les eaux de consommation : STEU de Conte, Nogaro et Villeneuve de Marsan"]
[null,"Tâche","Maître d'ouvrage (MO)","Partenaires techniques","Opérateurs","Etat d'avancement","Début","Fin","Commentaires de la ligne","Action engagé (MAEC ou autre)","Surface engagé (ha)","Vol d'eau récupéré","Economie d'eau attendue (Mm3)","FC","E² (Mm3)","Progression (%)","Commentaire général",null,null,"#DBDBDB","Non démarré","Action non initiée / qui découle de l'avancement d'une préalable pour être démarrée"]
[null,"Mont de Marsan - Conte","IA, Collectivité gestionnaire de la STEP, CA ou ASAH","CA, SYDEC, Régies des eaux",null,"Bien avancé","2020-01-01","2028-12-31","groupement de commande pour phases études lancé",null,null,null,0,null,{"$f":"M4*N4","v":0},50,"MdM : En phase d'étude et de maitrise d'œuvre. Maitrise d'œuvre lancée en 2022. Elaboration du dossier d'enquête publique prévu pour 2025.\nSuivi : COPILs réguliers.  Échéance : mise en service en 2028 (+1 an)\n",null,null,"#FFCCFF","Engagé","En cours, dans les étapes préliminaires"]
[null,"Nogaro",null,null,null,"Engagé","2023-07-01","2028-12-31","sollicitation par la commune pour étude faisabilité et suites possibles",{"$nulls":6},33,"Nogaro : en phase d'élaboration des partenariats. Etude préliminaire Chb Agri réalisée.\nRéunions préliminaires, voir si commune de Nogaro peut/veut poursuivre la démarche ou non selon les contraintes techniques locales : Etude en cours.",null,null,"#CC66FF","Bien avancé","En cours, plutôt dans les dernières étapes"]
[null,"Villeneuve de Marsan",null,null,null,"Non démarré",{"$nulls":13},"#A9D08E","Terminée","Pour les actions ponctuelles avec une date de fin"]
[null,"","",null,null,{"$f":"P7","v":41.5},null,null,"",null,null,null,{"$f":"SUM(M4:M6)","v":0},{"$f":"SUM(N4:N6)","v":0},{"$f":"SUM(O4:O6)","v":0},{"$f":"AVERAGE(P4:P6)","v":41.5},null,null,null,"#A9D08E","Se poursuit","Action qui a vocation à durer dans le temps  / Sans date de fin"]
[]
[null,"MRC-1b : Sensibiliser les industriels sur les possibilités de recyclage de leurs eaux de process"]
[null,"Tâche","Maître d'ouvrage (MO)","Partenaires techniques","Opérateurs","Etat d'avancement","Début","Fin","Commentaires de la ligne","Action engagé (MAEC ou autre)","Surface engagé (ha)","Vol d'eau récupéré","Economie d'eau attendue (Mm3)","FC","E² (Mm3)","Progression (%)","Commentaire général"]
[null,null,"IA","CCI, chambres des métiers, AEAG, collectivités",null,"Non démarré",{"$nulls":6},0,0,{"$f":"M11*N11","v":0},0]
[]
[null,"","",null,null,{"$f":"P13","v":0},null,null,"",null,null,null,{"$f":"SUM(M11:M12)","v":0},{"$f":"SUM(N11:N12)","v":0},{"$f":"SUM(O11:O12)","v":0},{"$f":"AVERAGE(P11:P12)","v":0}]
[]
[null,"MRC-2a : Mettre en place des pompages complémentaires hivernaux pour les RSE de Maribot, Lapeyrie, Charros et Arthez - Axe Midour"]
[null,"Tâche","Maître d'ouvrage (MO)","Partenaires techniques","Opérateurs","Etat d'avancement","Début","Fin","Commentaires de la ligne","Action engagé (MAEC ou autre)","Surface engagé (ha)","Vol d'eau récupéré","Economie d'eau attendue (Mm3)","FC","E² (Mm3)","Progression (%)","Commentaire général"]
[null,"Pompages complémentaires hivernaux avec maitrise des couts énergétiques","IA","DDT32, DDTM40",null,"Engagé",null,null,"après CMU6 ; MRC1",null,null,null,0,0,{"$f":"M17*N17","v":0},50,"Etudes et maitrise d'œuvre en cours pour les réservoirs de l'Institution Adour. "]
[{"$nulls":16},"3,2 Mm³ \n80 % irrigation / 20 % milieu\n(dont 0,7 Mm³ dédiés à de la gestion pluri-annuelle)"]
[null,"","",null,null,{"$f":"P19","v":50},{"$nulls":6},{"$f":"SUM(M17:M18)","v":0},{"$f":"SUM(N17:N18)","v":0},{"$f":"SUM(O17:O18)","v":0},{"$f":"AVERAGE(P17:P18)","v":50}]
[]
[null,"MRC-2b : Rehausser les RSE de Maribot et Lapeyrie et créer une (des) retenue(s) déconnectée(s) de substitution - Axe Midour"]
[null,"Tâche","Maître d'ouvrage (MO)","Partenaires techniques","Opérateurs","Etat d'avancement","Début","Fin","Commentaires de la ligne","Action engagé (MAEC ou autre)","Surface engagé (ha)","Vol d'eau récupéré","Economie d'eau attendue (Mm3)","FC","E² (Mm3)","Progression (%)","Commentaire général"]
[null,null,"IA","DDT32, DDTM40, OFB",null,"Engagé",{"$nulls":6},0,0,{"$f":"M23*N23","v":0},33,"Travail d'expertise sur les volumes potentiellement mobilisables sur les réservoirs d'ASA à engager en 2025.\nEtudes préliminaires – études environnementales et techniques sur l’ensemble des ouvrages - en cours de validation par le maître d’ouvrage pour les réhausses.\nRéunions locales de présentation des projets aux propriétaires et élus à l’automne 2024\nFoncier - conventionnement et travail avec les SAFER du Gers et des Landes "]
[]
[null,"","",null,null,{"$f":"P25","v":33},{"$nulls":6},{"$f":"SUM(M23:M24)","v":0},{"$f":"SUM(N23:N24)","v":0},{"$f":"SUM(O23:O24)","v":0},{"$f":"AVERAGE(P23:P24)","v":33}]
[]
[null,"MRC-2c : Connecter les réseaux d'irrigation aux ouvrages de stockage collectifs dans la mesure du possible - Axe Midour"]
[null,"Tâche","Maître d'ouvrage (MO)","Partenaires techniques","Opérateurs","Etat d'avancement","Début","Fin","Commentaires de la ligne","Action engagé (MAEC ou autre)","Surface engagé (ha)","Vol d'eau récupéré","Economie d'eau attendue (Mm3)","FC","E² (Mm3)","Progression (%)","Commentaire général"]
[null,null,"IA","CA32, CA40",null,"Engagé",{"$nulls":6},0,0,{"$f":"M29*N29","v":0},33]
[]
[null,"","",null,null,{"$f":"P31","v":33},{"$nulls":6},{"$f":"SUM(M29:M30)","v":0},{"$f":"SUM(N29:N30)","v":0},{"$f":"SUM(O29:O30)","v":0},{"$f":"AVERAGE(P29:P30)","v":33}]
[]
[null,"MRC-2d : Superviser l'optimisation du réservoir de Saint-Gein et la connexion directe des irrigants concernés à cet ouvrage - Axe Ludon"]
[null,"Tâche","Maître d'ouvrage (MO)","Partenaires techniques","Opérateurs","Etat d'avancement","Début","Fin","Commentaires de la ligne","Action engagé (MAEC ou autre)","Surface engagé (ha)","Vol d'eau récupéré","Economie d'eau attendue (Mm3)","FC","E² (Mm3)","Progression (%)","Commentaire général"]
[null,null,"IA ou Syndicat intercommunal du Ludon Gaube ?","IA, Syndicat intercommunal du Ludon Gaube, CA40",null,"Non démarré",{"$nulls":6},0,0,{"$f":"M35*N35","v":0},0]
[]
[null,"","",null,null,{"$f":"P37","v":0},{"$nulls":6},{"$f":"SUM(M35:M36)","v":0},{"$f":"SUM(N35:N36)","v":0},{"$f":"SUM(O35:O36)","v":0},{"$f":"AVERAGE(P35:P36)","v":0}]
[]
[null,"MRC-2e : Etudier la nécessité de créer une retenue déconnectée de substitution sur le Lusson"]
[null,"Tâche","Maître d'ouvrage (MO)","Partenaires techniques","Opérateurs","Etat d'avancement","Début","Fin","Commentaires de la ligne","Action engagé (MAEC ou autre)","Surface engagé (ha)","Vol d'eau récupéré","Economie d'eau attendue (Mm3)","FC","E² (Mm3)","Progression (%)","Commentaire général"]
[null,null,"IA","CA40",null,"Non démarré",{"$nulls":6},0,0,{"$f":"M41*N41","v":0},0]
[]
[null,"","",null,null,{"$f":"P43","v":0},{"$nulls":6},{"$f":"SUM(M41:M42)","v":0},{"$f":"SUM(N41:N42)","v":0},{"$f":"SUM(O41:O42)","v":0},{"$f":"AVERAGE(P41:P42)","v":0}]

{"sheet":"ASV_résumé","index":10,"n_rows":7,"n_cols":9,"rows_kept":7,"cut":false,"hidden":false,"merged":[[0,0,0,1],[3,9,5,9]]}
["ASV - Accompagnement, sensibilisation et valorisation",{"$nulls":4},{"$f":"'PTGE Midour Synthèse'!C1","v":"le 10/03/2025"}]
[]
["Code","Tâche","Actions à réaliser au préalable","Actions qui en dépendent ou en lien","Etat d'avancement","Progression","E² (Mm3)","Objectif PTGE 2035","Commentaires"]
["ASV-1","Accompagner les acteurs agricoles dans leur démarche de progrès continu",null,null,{"$f":"AVERAGE(ASV!F7,ASV!F14,ASV!F20,ASV!F27,ASV!F34,ASV!F40)","v":49.222222222222221},{"$f":"AVERAGE(ASV!P7,ASV!P14,ASV!P20,ASV!P27,ASV!P34,ASV!P40)","v":49.222222222222221},{"$f":"SUM(ASV!O7,ASV!O14,ASV!O20,ASV!O27,ASV!O34,ASV!O40)","v":0},"A poursuivre sur l'ensemble de la mise en œuvre du PTGE"]
["ASV-2","Accompagner les collectivités dans leur démarche de progrès continu",null,null,{"$f":"AVERAGE(ASV!F46,ASV!F52)","v":25.75},{"$f":"AVERAGE(ASV!P46,ASV!P52)","v":25.75},{"$f":"SUM(ASV!O46,ASV!O52)","v":0}]
["ASV-3","Elaborer un plan d'information, de sensibilisation et de valorisation",null,null,{"$f":"AVERAGE(ASV!F58)","v":50},{"$f":"AVERAGE(ASV!P58)","v":50},{"$f":"ASV!O58","v":0}]
[null,null,null,"Avancement moyen ASV",{"$f":"AVERAGE(E4:E6)","v":41.657407407407412},{"$f":"AVERAGE(F4:F6)","v":41.657407407407412},{"$f":"SUM(G4:G6)","v":0}]

{"sheet":"ASV","index":11,"n_rows":58,"n_cols":22,"rows_kept":58,"cut":false,"hidden":false,"merged":[[78,2,78,6],[46,5,46,7],[58,2,58,6],[66,5,66,6],[68,2,68,6],[69,12,69,13],[71,5,71,7],[72,5,72,7],[73,5,73,7],[74,5,74,7],[100,2,100,6],[107,2,107,15],[85,2,85,15],[89,5,89,6],[91,2,91,6],[92,12,92,14],[94,5,94,7],[96,5,96,7]]}
[null,"Accompagnement, sensibilisation et valorisation",null,null,null,{"$f":"'PTGE Midour Synthèse'!C1","v":"le 10/03/2025"}]
[null,"ASV-1a : Appuyer individuellement les agriculteurs dans leur démarche de progrès : ATI"]
[null,"Tâche","Maître d'ouvrage (MO)","Partenaires techniques","Opérateurs","Etat d'avancement","Début","Fin","Commentaires de la ligne","Action engagé (MAEC ou autre)","Surface engagé (ha)","Vol d'eau récupéré","Economie d'eau attendue (Mm3)","FC","E² (Mm3)","Progression (%)","Commentaire général",null,null,"#DBDBDB","Non démarré","Action non initiée / qui découle de l'avancement d'une préalable pour être démarrée"]
[null,"Création d'un support de communication commun aux structures d'accompagnement agricole","Animateur technique agricole","Acteurs agricoles (Irrigadour, CA32, CA40, Bio du Gers, Agrobio40, Vivadour, Maïsadour)","IA, ","Terminée","2022-07-01","2022-12-31",{"$nulls":4},0,0,{"$f":"M4*N4","v":0},100,"Réalisé par les partenaires en lien avec les exploitants agricoles, selon les besoins",null,null,"#FFCCFF","Engagé","En cours, dans les étapes préliminaires"]
[null,"Définition d'indicateurs communs des diagnostics et harmonisation des modalités de suivis des ATI",null,null,"IA, ","Terminée","2022-07-01","2022-12-31",{"$nulls":7},100,"Au besoin : fait avec CA40 et Agrobio pour étude filière AB",null,null,"#CC66FF","Bien avancé","En cours, plutôt dans les dernières étapes"]
[null,"Lancement des ATI",null,null,null,"Se poursuit",{"$nulls":9},50,"un réalisé, l'autre en cours. Potentiellement d'autres à venir.",null,null,"#A9D08E","Terminée","Pour les actions ponctuelles avec une date de fin"]
[null,"","",null,null,{"$f":"P7","v":83.333333333333329},null,null,"",null,null,null,{"$f":"SUM(M4:M6)","v":0},{"$f":"SUM(N4:N6)","v":0},{"$f":"SUM(O4:O6)","v":0},{"$f":"AVERAGE(P4:P6)","v":83.333333333333329},null,null,null,"#A9D08E","Se poursuit","Action qui a vocation à durer dans le temps  / Sans date de fin"]
[]
[null,"ASV-1b : Appuyer collectivement les agriculteurs dans leur démarche de progrès : GT, formations, journées d'échange"]
[null,"Tâche","Maître d'ouvrage (MO)","Partenaires techniques","Opérateurs","Etat d'avancement","Début","Fin","Commentaires de la ligne","Action engagé (MAEC ou autre)","Surface engagé (ha)","Vol d'eau récupéré","Economie d'eau attendue (Mm3)","FC","E² (Mm3)","Progression (%)","Commentaire général"]
[null,"Mise en place de journée d'échanges","Animateur technique agricole","Acteurs agricoles  (Irrigadour, CA32, CA40, Bio du Gers, Agrobio40, Vivadour, Maïsadour), CFPPA","IA, ","Engagé","2022-01-01","2022-12-31","après AUM1a, AUM2bcde, AUM3b, AUM4ab, OGRM3b",null,null,null,0,0,{"$f":"M11*N11","v":0},33,"Action transversale qui regroupe aussi cette opportunité d'organisation d'évènements dédiés pour toute thématique hors fiches actions déjà visées par ce type d'appui"]
[null,"Mise en place de formations",null,null,"IA, ","Engagé",{"$nulls":9},33,"Contacts pris (cf. ORGM3b), à poursuivre et à l'ODJ du prochain comité agricole. Une formation en cours d'élaboration sur l'accompagnement au pilotage de la ferme (OAD irrigation)"]
[null,"Mise en place de groupes de travail",null,null,"IA, ","Non démarré",{"$nulls":9},0]
[null,"","",null,null,{"$f":"P14","v":22},null,null,"",null,null,null,{"$f":"SUM(M11:M13)","v":0},{"$f":"SUM(N11:N13)","v":0},{"$f":"SUM(O11:O13)","v":0},{"$f":"AVERAGE(P11:P13)","v":22}]
[]
[null,"ASV-1c : Mener des expérimentations"]
[null,"Tâche","Maître d'ouvrage (MO)","Partenaires techniques","Opérateurs","Etat d'avancement","Début","Fin","Commentaires de la ligne","Action engagé (MAEC ou autre)","Surface engagé (ha)","Vol d'eau récupéré","Economie d'eau attendue (Mm3)","FC","E² (Mm3)","Progression (%)","Commentaire général"]
[null,null,"Exploitants agricoles, AFAF, CA40, CA32, Maïsadour, Vivadour, autres acteurs agricoles, ADASEA",null,null,"Non démarré",null,null,"après AUM2a, AUM3a, OGRM3a",null,null,null,0,0,{"$f":"M18*N18","v":0},0,"Selon les besoins  exprimés sur le territoire et les opportunités de développement d’expérimentations pour toute thématique hors fiches actions déjà visées par ce type d'appui"]
[]
[null,"","",null,null,{"$f":"P20","v":0},{"$nulls":6},{"$f":"SUM(M18:M19)","v":0},{"$f":"SUM(N18:N19)","v":0},{"$f":"SUM(O18:O19)","v":0},{"$f":"AVERAGE(P18:P19)","v":0}]
[]
[null,"ASV-1d : Organiser l'information et la formation pour les conseillers agricoles"]
[null,"Tâche","Maître d'ouvrage (MO)","Partenaires techniques","Opérateurs","Etat d'avancement","Début","Fin","Commentaires de la ligne","Action engagé (MAEC ou autre)","Surface engagé (ha)","Vol d'eau récupéré","Economie d'eau attendue (Mm3)","FC","E² (Mm3)","Progression (%)","Commentaire général"]
[null,"Organisation de journée thématique","Animateur technique agricole","Acteurs du projet de territoire, intervenants extérieurs, CFPPA","IA, ","Non démarré",null,null,"après AUM2d",null,null,null,0,0,{"$f":"M24*N24","v":0},0]
[null,"Information et sensibilisation ",null,null,"IA, ","Non démarré"]
[]
[null,"","",null,null,{"$f":"P27","v":0},{"$nulls":6},{"$f":"SUM(M24:M26)","v":0},{"$f":"SUM(N24:N26)","v":0},{"$f":"SUM(O24:O26)","v":0},{"$f":"AVERAGE(P24:P26)","v":0}]
[]
[null,"ASV-1e : Mobiliser les mesures agro-environnementales et climatiques"]
[null,"Tâche","Maître d'ouvrage (MO)","Partenaires techniques","Opérateurs","Etat d'avancement","Début","Fin","Commentaires de la ligne","Action engagé (MAEC ou autre)","Surface engagé (ha)","Vol d'eau récupéré","Economie d'eau attendue (Mm3)","FC","E² (Mm3)","Progression (%)","Commentaire général"]
[null,"Elaboration et validation d'un PAEC (Gers)","Animateur technique agricole","Acteurs du PTGE","CA32, ","Terminée","2022-01-01","2022-12-31",{"$nulls":4},0,0,{"$f":"M31*N31","v":0},100,"Deux PAEC lancés : occitanie et nouvelle aquitaine pour proposer des MAEc aux exploitants agricoles. \nCampagne 2023 : 22 contractualisations dans le Gers. \nCampagne 2024 : 12 contractualisations dans le Gers. de nouvelles mesures sont ouvertes pour harmonisation de la proposition dans les deux régions."]
[null,"Elaboration et validation d'un PAEC (Landes)",null,null,"CA40, ","Terminée","2022-01-01","2022-12-31",{"$nulls":7},100,"Campagne 2023 : 0 contractuatualisations dans les Landes (1 débouté à l'instruction). \nCampagne 2024 : 2 contractualisations dans les Landes. De nouvelles MAEC disponibles (hamonisation avec le Gers).\nCampagne 2025 : Aire du PAEC agrandie pour inclure AAC Pujo/st Gein."]
[null,"Portage du PAEC",null,null,"IA, ","Se poursuit","2022-01-01","2028-12-31",{"$nulls":7},100,"Toujours en cours"]
[null,"","",null,null,{"$f":"P34","v":100},{"$nulls":6},{"$f":"SUM(M31:M33)","v":0},{"$f":"SUM(N31:N33)","v":0},{"$f":"SUM(O31:O33)","v":0},{"$f":"AVERAGE(P31:P33)","v":100}]
[]
[null,"ASV-1f : Rechercher et construire de nouvelles mesures d'aide pour les agriculteurs"]
[null,"Tâche","Maître d'ouvrage (MO)","Partenaires techniques","Opérateurs","Etat d'avancement","Début","Fin","Commentaires de la ligne","Action engagé (MAEC ou autre)","Surface engagé (ha)","Vol d'eau récupéré","Economie d'eau attendue (Mm3)","FC","E² (Mm3)","Progression (%)","Commentaire général"]
[null,"Sollicitations et veille AAP","Animateur technique agricole","AEAG, Régions, DDT32, DDTM40, Europe, etc","IA, ","Se poursuit","2022-01-01","2028-12-31",{"$nulls":4},0,0,{"$f":"M38*N38","v":0},100,"Axe de travail permanent assuré par les animateurs"]
[null,"PSE",null,null,"IA, ","Se poursuit","2021-01-01","2028-12-31",{"$nulls":7},80,"Dispositif PSE devrait reprendre en 2025 avec le 12ème programme de l'AEAG.\nRecensement des besoins sur petits montants - MàJ après comité agricole à faire"]
[null,"","",null,null,{"$f":"P40","v":90},{"$nulls":6},{"$f":"SUM(M38:M39)","v":0},{"$f":"SUM(N38:N39)","v":0},{"$f":"SUM(O38:O39)","v":0},{"$f":"AVERAGE(P38:P39)","v":90}]
[]
[null,"ASV-2a : Développer des pratiques alternatives pour la gestion des paysages à l'échelle des collectivités"]
[null,"Tâche","Maître d'ouvrage (MO)","Partenaires techniques","Opérateurs","Etat d'avancement","Début","Fin","Commentaires de la ligne","Action engagé (MAEC ou autre)","Surface engagé (ha)","Vol d'eau récupéré","Economie d'eau attendue (Mm3)","FC","E² (Mm3)","Progression (%)","Commentaire général"]
[null,"Projet - Grain Bocager FDC40 / IA","FDC40","FDC 32 / FDC 40 / IA / Arbres et Paysages 32 / Syndicats rivière","FDC / IA","Engagé","2024-08-13",{"$nulls":5},0,0,{"$f":"M44*N44","v":0},33,"\nDépôt d'un dossier fonds vert en partenariat avec FDC40 (contact J. Brugnot) pour la partie landaise des PTGE du Midour et de la Douze"]
[null,"Projet - Trame Verte (Grain Bocager) FDC32 / PETR ","FDC32","FDC 32 / FDC 40 / PETR / Arbres et Paysages 32 / Syndicats rivière","FDC32 / PETR / AP32","Engagé","1905-07-15",{"$nulls":8},50,"Trame Verte en cours côté Gers sur le territoire du PETR Pays d'Armagnac, Institution Adour membre du Copil"]
[null,"","",null,null,{"$f":"P46","v":41.5},{"$nulls":6},{"$f":"SUM(M44:M45)","v":0},{"$f":"SUM(N44:N45)","v":0},{"$f":"SUM(O44:O45)","v":0},{"$f":"AVERAGE(P44:P45)","v":41.5}]
[]
[null,"ASV-2b : Développer des pratiques alternatives pour la gestion de l'eau à l'échelle des collectivités"]
[null,"Tâche","Maître d'ouvrage (MO)","Partenaires techniques","Opérateurs","Etat d'avancement","Début","Fin","Commentaires de la ligne","Action engagé (MAEC ou autre)","Surface engagé (ha)","Vol d'eau récupéré","Economie d'eau attendue (Mm3)","FC","E² (Mm3)","Progression (%)","Commentaire général"]
[null,null,"Collectivités",null,null,"Non démarré",null,null,"après ASV2a",null,null,null,0,0,{"$f":"M50*N50","v":0},10,"Cf. ASV 2a"]
[]
[null,"","",null,null,{"$f":"P52","v":10},{"$nulls":6},{"$f":"SUM(M50:M51)","v":0},{"$f":"SUM(N50:N51)","v":0},{"$f":"SUM(O50:O51)","v":0},{"$f":"AVERAGE(P50:P51)","v":10}]
[]
[null,"ASV-3a : Elaborer un plan d'information, de sensibilisation et de valorisation"]
[null,"Tâche","Maître d'ouvrage (MO)","Partenaires techniques","Opérateurs","Etat d'avancement","Début","Fin","Commentaires de la ligne","Action engagé (MAEC ou autre)","Surface engagé (ha)","Vol d'eau récupéré","Economie d'eau attendue (Mm3)","FC","E² (Mm3)","Progression (%)","Commentaire général"]
[null,"Communication ","Elaboration du plan : IA (stage ou contrat)\nMise en œuvre du plan : à définir",null,null,"Engagé",null,null,"Communication directe vers les agriculteurs du secteur grâce à la disponibilité des données issues du RGA via la DRAAF (SRISET) : Donnes niveau N2+ hors pacage ","Première récupération de contacts mi 2022  ; demande de mise à jour le 04/11/2024",null,null,0,0,{"$f":"M56*N56","v":0},50,"Fin 2022 : Finalisation du plan d’information, de sensibilisation et de valorisation\n2023 : début de mise en œuvre\n2024 : demande de mise à jour des contacts N2+ hors pacage en cours"]
[]
[null,"","",null,null,{"$f":"P58","v":50},{"$nulls":6},{"$f":"SUM(M56:M57)","v":0},{"$f":"SUM(N56:N57)","v":0},{"$f":"SUM(O56:O57)","v":0},{"$f":"AVERAGE(P56:P57)","v":50}]

{"sheet":"Gouv_résumé","index":12,"n_rows":7,"n_cols":9,"rows_kept":7,"cut":false,"hidden":false,"merged":[[0,0,0,1],[3,9,5,9]]}
["GOUV - Gouvernance",{"$nulls":5},{"$f":"'PTGE Midour Synthèse'!C1","v":"le 10/03/2025"}]
[]
["Code","Tâche","Actions à réaliser au préalable","Actions qui en dépendent ou en lien","Etat d'avancement","Progression","E² (Mm3)","Objectif PTGE 2035","Commentaires"]
["GOUV-1","Maintenir la gouvernance du projet de territoire et la mobilisation des instances",null,null,{"$f":"AVERAGE(Gouv!F6)","v":100},{"$f":"Gouv!P6","v":100},{"$f":"Gouv!O6","v":0},null,"Un comité de suivi par an à ce jour (selon l'avancement des projets) avec au cours de l'année plusieurs comités agricoles pour des points d'avancement plus spécifiques et réguliers. "]
["GOUV-2","Animer et coordonner le projet de territoire",null,null,{"$f":"AVERAGE(Gouv!F12)","v":100},{"$f":"Gouv!P12","v":100},{"$f":"Gouv!O12","v":0},null,"IA - Poste animation PTGE (1/2 ETP)\nIA - Poste animateur agricole (1ETP)"]
["GOUV-3","Elaborer un tableau de bord pour suivre la mise en œuvre du projet de territoire",null,null,{"$f":"AVERAGE(Gouv!F17)","v":100},{"$f":"Gouv!P17","v":100},{"$f":"Gouv!O17","v":0},null,"Proposition d’envoyer le TdB  aux membres du COPIL en amont du prochain COPIL"]
[null,null,null,"Avancement moyen Gouv",{"$f":"AVERAGE(E4:E6)","v":100},{"$f":"AVERAGE(F4:F6)","v":100},{"$f":"SUM(G4:G6)","v":0}]

{"sheet":"Gouv","index":13,"n_rows":17,"n_cols":22,"rows_kept":17,"cut":false,"hidden":false,"merged":[[38,2,38,6],[18,2,18,6],[26,5,26,6],[28,2,28,6],[9,16,11,16],[15,16,16,16],[29,12,29,13],[31,5,31,7],[32,5,32,7],[33,5,33,7],[34,5,34,7],[60,2,60,6],[67,2,67,15],[45,2,45,15],[49,5,49,6],[51,2,51,6],[52,12,52,14],[54,5,54,7],[56,5,56,7]]}
[null,"Gouvernance",null,null,null,{"$f":"'PTGE Midour Synthèse'!C1","v":"le 10/03/2025"}]
[null,"GOUV-1 : Maintenir la gouvernance du projet de territoire et la mobilisation des instances"]
[null,"Tâche","Maître d'ouvrage (MO)","Partenaires techniques","Opérateurs","Etat d'avancement","Début","Fin","Commentaires de la ligne","Action engagé (MAEC ou autre)","Surface engagé (ha)","Vol d'eau récupéré","Economie d'eau attendue (Mm3)","FC","E² (Mm3)","Progression (%)","Commentaire général",null,null,"#DBDBDB","Non démarré","Action non initiée / qui découle de l'avancement d'une préalable pour être démarrée"]
[null,"Réunions du COPIL","IA",null,"IA, ","Se poursuit","2020-01-01","2028-12-31",{"$nulls":4},0,1,{"$f":"M4*N4","v":0},100,"Un comité de suivi par an à ce jour (selon l'avancement des projets) avec au cours de l'année plusieurs comités agricoles pour des points d'avancement plus spécifiques et réguliers. ",null,null,"#FFCCFF","Engagé","En cours, dans les étapes préliminaires"]
[null,"Réunions du COTECH","IA",null,"IA, ","Se poursuit","2020-01-01","2028-12-31",{"$nulls":7},100,null,null,null,"#CC66FF","Bien avancé","En cours, plutôt dans les dernières étapes"]
[null,"","",null,null,{"$f":"P6","v":100},null,null,"",null,null,null,{"$f":"SUM(M4:M4)","v":0},{"$f":"SUM(N4:N4)","v":1},{"$f":"SUM(O4:O4)","v":0},{"$f":"AVERAGE(P4:P5)","v":100},null,null,null,"#A9D08E","Terminée","Pour les actions ponctuelles avec une date de fin"]
[{"$nulls":19},"#A9D08E","Se poursuit","Action qui a vocation à durer dans le temps  / Sans date de fin"]
[null,"GOUV-2 : Animer et coordonner le projet de territoire"]
[null,"Tâche","Maître d'ouvrage (MO)","Partenaires techniques","Opérateurs","Etat d'avancement","Début","Fin","Commentaires de la ligne","Action engagé (MAEC ou autre)","Surface engagé (ha)","Vol d'eau récupéré","Economie d'eau attendue (Mm3)","FC","E² (Mm3)","Progression (%)","Commentaire général"]
[null,"Bilan d'activité","IA / structures agricoles pour animation agricole",null,"IA, ","Se poursuit","2020-01-01","2028-12-31",{"$nulls":4},0,0,{"$f":"M10*N10","v":0},100,"Une animatrice a été recrutée à l'automne 2020 pour la mise en œuvre des actions du PTGE Midour.\nDépart de l'animatrice en décembre 2021.\nRecrutement de deux animatrices au printemps 2022 : animatrice générale et animatrice agricole. Départ de l'animatrice en novembre 2023.\nRecrutement animatrice agricole 01/10/2024."]
[null,"Comité agricole","IA / structures agricoles pour animation agricole",null,"IA, ","Se poursuit","2020-01-01","2028-12-31",{"$nulls":7},100]
[null,"","",null,null,{"$f":"P12","v":100},null,null,"",null,null,null,{"$f":"SUM(M10:M10)","v":0},{"$f":"SUM(N10:N10)","v":0},{"$f":"SUM(O10:O10)","v":0},{"$f":"AVERAGE(P10:P11)","v":100}]
[]
[null,"GOUV-3 : Elaborer un tableau de bord pour suivre la mise en œuvre du projet de territoire"]
[null,"Tâche","Maître d'ouvrage (MO)","Partenaires techniques","Opérateurs","Etat d'avancement","Début","Fin","Commentaires de la ligne","Action engagé (MAEC ou autre)","Surface engagé (ha)","Vol d'eau récupéré","Economie d'eau attendue (Mm3)","FC","E² (Mm3)","Progression (%)","Commentaire général"]
[null,"Tableau de bord","IA",null,"IA, ","Se poursuit","2020-01-01","2028-12-31",{"$nulls":4},0,0,{"$f":"M16*N16","v":0},100,"En 2022, 1ere révision du tableau de bord . En 2024 2nde révision : l'objectif est de le rendre plus visuel et plus automatisé. mise à jour continue."]
[null,"","",null,null,{"$f":"P17","v":100},{"$nulls":6},{"$f":"SUM(M16:M16)","v":0},{"$f":"SUM(N16:N16)","v":0},{"$f":"SUM(O16:O16)","v":0},{"$f":"AVERAGE(P16:P16)","v":100}]

{"sheet":"Synthèse_prog_action","index":15,"n_rows":18,"n_cols":19,"rows_kept":18,"cut":false,"hidden":false,"merged":[]}
{"$rows_empty":17}
[{"$nulls":18},"5,35 Mm³ (2,15 reut + 2,1 Mm3 phc + 0,45 cscrh + 0,65 Mm3 rosm)"]